Cogmind - Beta 15 @@@ ROGUE MODE // 2025.08.25 @ 17:42:17 Player: C0-2MO Result: Defending 0bPrime! Performance ------------- Evolutions (8) 4000 Regions Visited (27) 5400 Robots Destroyed (125) 625 Value Destroyed (5821) 5821 Prototype IDs (132) 2640 Alien Tech Used (6) 1200 Bonus (18735) 18735 TOTAL SCORE: 38421 Bonus ------- High Alert Combat Kills 928 Follower Combat Kills 414 Entered Garrisons 400 Used RIF Installer 1000 Registered with UFD 300 Met Optimus in HQ 500 Met Zhirov 300 Met Warlord at Base 500 MAIN.C Attacked Warlord 500 Met Optimus at Protoforge 1000 Completed Drillbomb Mission10000 Win 3000 Friendly Fire -107 Cogmind --------- Core Integrity 696/1450 Matter 300/300 Energy 600/600 System Corruption 0% Temperature Cool (0) Movement Flying (20) Location 0bPrime Parts ------- > --- POWER (2) -------- Improved Quantum Reactor Improved Quantum Reactor > --- PROPULSION (9) --- Impulse Thruster Electron Diverter Electron Diverter (fused) Electron Diverter Electron Diverter Impulse Thruster Array Impulse Thruster Array > --- UTILITY (10) ----- Concept Phasing Heat Sink Large Storage Unit Advanced Gravity Neutralizer Spectral Analyzer Long-range Sensor Array (fused) Experimental Signal Interpreter Experimental Cloaking Device Experimental Propulsion Shielding Graphene Brace Advanced System Restoration Module > --- WEAPON (2) ------- Sigix Broadsword > --- INVENTORY (15) --- Stasis Canceller Advanced Reaction Control System Concept Smart ZDS Peak State ------------ > --- POWER ------------ Improved Quantum Reactor Improved Quantum Reactor > --- PROPULSION ------- Impulse Thruster Electron Diverter Electron Diverter Electron Diverter Electron Diverter Impulse Thruster Array Impulse Thruster Array > --- UTILITY ---------- Concept Phasing Heat Sink Large Storage Unit Advanced Gravity Neutralizer Spectral Analyzer Long-range Sensor Array Experimental Signal Interpreter Advanced Reaction Control System Experimental Cloaking Device Graphene Brace Advanced System Restoration Module > --- WEAPON ----------- Sigix Broadsword > --- INVENTORY -------- Stasis Canceller Advanced ECM Suite Experimental Propulsion Shielding Supercharged TR Concept Smart ZDS UFD Drillbomb [Rating: 211] Favorites ----------- Power Improved Quantum Reactor Engine Light Ion Engine Power Core Light Nuclear Core Reactor Improved Quantum Reactor Propulsion Electron Diverter Treads Light Treads Leg Carbon-fiber Leg Wheel Compact Wheel Hover Unit Gyrokinetic Inverter Flight Unit Electron Diverter Utility Large Storage Unit Device Long-range Sensor Array Storage Large Storage Unit Processor Experimental Signal Interpreter Hackware Experimental Hacking Suite Protection Experimental Propulsion Shielding Weapon Makeshift Sword Energy Gun Riot Gun Energy Cannon Heavy Phase Cannon Ballistic Gun Autogun Ballistic Cannon Perforator Launcher Grenade Launcher Special Weapon Mining Laser Impact Weapon Impact Mace Slashing Weapon Makeshift Sword Piercing Weapon Lance Special Melee Weapon Improved Datajack Build | -11 -10 -10 -7 -7 -5 -5 -5 -5 -5 -5 -4 -4 -4 -4 -4 -4 -4 -3 -3 -3 -3 -3 -2 -2 -2 -2 -2 ------- Run | Yrd Mat Sub Rec Scr Fac Was Fac Upp Upp Zhi Pro Fac Was Fac Upp Upp War Pro Res Gar Res Tes Res Gar Res Qua Frg Slots Evolved 16 | . . . . . 10 . . . . . . 2 . . . . . . 2 . . . 2 . . . . Power 1 | . . . . . 1 . . . . . . . . . . . . . . . . . . . . . . Propulsion 7 | . . . . . 5 . . . . . . 1 . . . . . . . . . . 1 . . . . Utility 8 | . . . . . 4 . . . . . . 1 . . . . . . 2 . . . 1 . . . . Weapon . | . . . . . . . . . . . . . . . . . . . . . . . . . . . . Parts Attached 203 | 7 13 10 1 8 28 3 17 4 8 9 1 13 . 10 . 1 7 . 13 . 6 3 5 1 3 4 28 Power 28 | 1 2 1 . 1 4 1 6 . 1 1 . 1 . 2 . . 1 . . . . . . . 1 1 4 Engine 7 | 1 . 1 . . 3 . 2 . . . . . . . . . . . . . . . . . . . . Core 11 | . 2 . . 1 1 . 4 . 1 1 . . . 1 . . . . . . . . . . . . . Reactor 10 | . . . . . . 1 . . . . . 1 . 1 . . 1 . . . . . . . 1 1 4 Propulsion 55 | 2 2 3 1 2 10 1 5 1 5 1 1 2 . 4 . . 2 . 2 . 3 1 2 . . . 5 Treads 3 | 1 1 1 . . . . . . . . . . . . . . . . . . . . . . . . . Leg 3 | . . . . 1 . . . 1 . 1 . . . . . . . . . . . . . . . . . Wheel 7 | 1 1 2 1 1 1 . . . . . . . . . . . . . . . . . . . . . . Hover 8 | . . . . . 5 . 3 . . . . . . . . . . . . . . . . . . . . Flight 34 | . . . . . 4 1 2 . 5 . 1 2 . 4 . . 2 . 2 . 3 1 2 . . . 5 Utility 75 | 2 2 1 . 2 14 1 2 1 . 6 . 8 . 4 . . 2 . 7 . 2 . 3 1 2 1 14 Device 32 | 1 . . . 1 4 1 2 . . 2 . 4 . 2 . . 1 . 3 . 1 . 2 1 . 1 6 Storage 7 | 1 1 . . . 2 . . . . 1 . 1 . . . . . . . . . . 1 . . . . Processor 10 | . . . . . 2 . . . . . . 1 . . . . 1 . 1 . . . . . 1 . 4 Hackware 18 | . . . . 1 5 . . . . 1 . 2 . 2 . . . . 3 . . . . . 1 . 3 Protection 8 | . 1 1 . . 1 . . 1 . 2 . . . . . . . . . . 1 . . . . . 1 Artifact . | . . . . . . . . . . . . . . . . . . . . . . . . . . . . Weapon 45 | 2 7 5 . 3 . . 4 2 2 1 . 2 . . . 1 2 . 4 . 1 2 . . . 2 5 Energy Gun 7 | . 2 2 . 1 . . . . . . . . . . . . 1 . . . . 1 . . . . . Energy Cannon 4 | . . . . . . . 1 1 . . . . . . . . . . 1 . . . . . . 1 . Ballistic Gun 10 | 2 3 1 . . . . . . . 1 . . . . . . . . . . . . . . . . 3 Ballistic Cannon 2 | . . . . . . . . . . . . . . . . . . . . . . 1 . . . . 1 Launcher 5 | . 1 1 . . . . 1 . . . . . . . . . . . . . 1 . . . . . 1 Special Weapon 5 | . 1 . . . . . . . . . . 1 . . . 1 . . 2 . . . . . . . . Impact Weapon 2 | . . . . . . . 1 . . . . 1 . . . . . . . . . . . . . . . Slashing Weapon 8 | . . 1 . 2 . . . 1 2 . . . . . . . . . 1 . . . . . . 1 . Piercing Weapon 1 | . . . . . . . . . . . . . . . . . 1 . . . . . . . . . . Special Melee Weapon 1 | . . . . . . . 1 . . . . . . . . . . . . . . . . . . . . Unidentified Prototypes 29 | . 1 . . . . . 2 1 . 5 . 3 . . . . 5 . 3 . 1 2 . . 1 3 2 Corrupted Parts 1 | . . . . 1 . . . . . . . . . . . . . . . . . . . . . . . System Corruption 2 | . . . . 2 . . . . . . . . . . . . . . . . . . . . . . . Parts Lost 51 | . 3 3 . . 11 . 16 3 3 . . . . 3 . . . . . . . . . 2 . . 7 Power 7 | . 1 1 . . 2 . 1 . . . . . . 1 . . . . . . . . . . . . 1 Propulsion 21 | . . . . . 6 . 8 1 1 . . . . 1 . . . . . . . . . . . . 4 Utility 14 | . . . . . 2 . 4 1 2 . . . . 1 . . . . . . . . . 2 . . 2 Weapon 9 | . 2 2 . . 1 . 3 1 . . . . . . . . . . . . . . . . . . . Highest Loss Streak 7 | . 1 3 . . 3 . 7 3 2 . . . . 2 . . . . . . . . . 2 . . 3 To Critical Strikes . | . . . . . . . . . . . . . . . . . . . . . . . . . . . . Average Backups 10 | 3 12 14 13 12 9 3 4 4 5 4 3 7 10 9 9 9 9 10 9 10 9 10 9 14 14 13 9 Power . | . 1 1 . . . . . 1 1 . . . . . . . . . . . . . . . . . . Propulsion 1 | 2 4 4 2 1 . . . . . . . . . . 1 1 1 1 1 1 1 1 . 4 3 2 . Utility 4 | . . 2 6 6 4 1 1 2 3 2 1 4 6 4 3 3 4 5 3 4 5 6 6 7 7 7 5 Weapon 2 | . 6 6 4 2 2 . . . . . . 1 2 2 2 2 2 1 1 2 1 . . 1 1 1 1 Tool/Special . | . . . . . . . . . . . . . . . . . . . . . . . . . . . . Unused Backups 26 | . . 1 1 3 4 . 1 . . . . 1 . . . . 1 . . . 1 1 . . 5 . 7 Power 2 | . . . . . . . 1 . . . . . . . . . . . . . . . . . 1 . . Propulsion 4 | . . . . . . . . . . . . . . . . . . . . . . 1 . . 2 . 1 Utility 13 | . . 1 1 2 1 . . . . . . 1 . . . . . . . . 1 . . . 2 . 4 Weapon 3 | . . . . . 1 . . . . . . . . . . . 1 . . . . . . . . . 1 Tool/Special 4 | . . . . 1 2 . . . . . . . . . . . . . . . . . . . . . 1 Average Slot Usage (%) 81 | . 98 99 85 62 59 52 69 25 34 53 80 85 89 92 93 94 91 89 86 90 90 89 87 90 89 94 89 Engine 1 | . 6 3 . . 3 . 1 . . . . . . . . . . . . . . . . . . . . Core 3 | . 6 10 . 11 1 . 4 . 2 6 11 10 10 5 5 5 2 . . . . . . . . . . Reactor 2 | . . . . . . . . . . . . . . 4 5 5 5 5 4 4 4 4 4 4 4 7 7 Treads 1 | . 14 13 . . . . . . . . . . . . . . . . . . . . . . . . . Wheel 4 | . 14 14 28 16 4 . . . . . . . . . . . . . . . . . . . . . . Flight 20 | . . . . . 5 16 15 . 12 23 27 30 31 35 36 36 35 36 32 33 33 32 34 39 39 38 33 Device 10 | . 10 . . . 4 6 9 . . 1 5 10 10 9 9 10 12 15 15 9 14 14 16 17 17 19 23 Storage 6 | . 14 14 14 12 3 . . . . 2 5 3 5 5 5 5 5 5 4 4 4 4 4 4 4 4 4 Processor 4 | . . . . . 4 5 5 5 3 . . 4 5 5 5 5 5 5 4 4 4 4 4 4 7 5 10 Hackware 8 | . . . . 8 11 17 16 11 7 7 11 14 15 14 10 10 10 10 16 19 19 19 17 11 10 9 2 Protection 3 | . 3 14 14 1 2 . . 4 . 4 11 . . . 5 5 2 . . 3 . . . 3 . 2 2 Energy Gun 1 | . 1 14 . . . . . . . . . . . . . . . . . . . . . . . . . Ballistic Gun 3 | . 24 6 23 3 . . . . . . . . . . . . . . . . . . . . . . 1 Slashing Weapon 3 | . . . 4 7 4 5 2 . 5 5 5 5 5 5 5 5 4 5 5 4 4 3 3 2 3 3 2 Peak Build Rating 211 | 7 13 18 16 29 57 48 70 32 27 58 64 103 101 116 118 119 138 137 158 156 163 175 175 172 178 202 211 Average Rating 100 | 5 11 14 14 19 41 37 50 23 20 40 62 88 101 108 117 118 128 137 148 155 156 158 166 168 172 198 200 On Entrance 88 | . 7 11 16 14 29 28 41 10 15 24 58 64 101 101 115 118 118 137 137 154 156 158 159 169 167 171 201 Naked Turns . | . . . . . . . . . . . . . . . . . . . . . . . . . . . . Heaviest Build 84 | 13 34 35 34 35 58 6 25 23 7 18 18 28 28 38 36 36 53 53 60 60 55 60 71 74 69 70 84 Greatest Support 87 | 16 20 40 32 32 44 18 25 15 19 19 26 45 37 51 44 58 60 53 61 61 63 63 71 70 70 70 87 Greatest Overweight (x) 9 | . 3 3 1 9 5 1 . 7 . 2 . . . . . . . . . . . 1 . 1 . . 1 Average Overweight (x) . | . 1 2 . . . . . 2 . . . . . . . . . . . . . . . . . . . Largest Inventory Capacity 20 | 8 15 15 15 15 20 5 5 5 5 5 5 10 10 10 10 10 10 10 10 10 10 10 15 15 15 15 15 Average Capacity 12 | 6 14 15 15 13 13 5 5 5 5 5 5 8 10 10 10 10 10 10 10 10 10 10 14 15 15 15 15 Most Carried 16 | 5 15 15 15 15 16 4 5 5 5 5 5 10 10 10 10 9 10 10 10 10 10 10 15 15 15 15 15 Average Carried 10 | 3 12 14 14 13 9 3 4 4 5 4 4 7 10 9 9 9 9 10 9 10 9 9 9 13 14 14 12 Final Capacity 15 | 8 15 15 15 15 5 5 5 5 5 5 5 10 10 10 10 10 10 10 10 10 10 10 15 15 15 15 15 Final Carried 15 | 5 15 15 15 15 4 3 4 5 5 3 5 10 10 10 9 9 10 10 10 10 10 10 15 13 15 15 3 Class Distribution -------------------- 31% | Mutant 13% | Hacker-Ninja 11% | Hacker-Scout 10% | Wizard-Scout 8% | Hacker-Mutant 8% | Scavenger-Ninja 5% | Hacker-Sprinter 3% | Scavenger-Scout Dominant Class ---------------- Mutant | -10/Materials Mutant | -10/Subcaves Mutant | -7/Recycling Mutant | -7/Scraptown Mutant | -5/Factory Hacker-Mutant | -5/Waste Hacker-Sprinter | -5/Factory Hacker-Mutant | -5/Upper Caves Scavenger-Sprinter | -5/Upper Caves Hacker-Sprinter | -5/Zhirov Hacker-Sprinter | -4/Proximity Caves Hacker-Scout | -4/Factory Hacker-Scout | -4/Waste Hacker-Scout | -4/Factory Hacker-Scout | -4/Upper Caves Hacker-Scout | -4/Upper Caves Hacker-Scout | -4/Warlord Hacker-Scout | -3/Proximity Caves Wizard-Scout | -3/Research Wizard-Sprinter | -3/Garrison Wizard-Scout | -3/Research Wizard-Scout | -3/Testing Wizard-Ninja | -2/Research Wizard-Scout | -2/Garrison Hacker-Ninja | -2/Research Hacker-Ninja | -2/Quarantine Scavenger-Ninja | -2/Protoforge Resources | -11 -10 -10 -7 -7 -5 -5 -5 -5 -5 -5 -4 -4 -4 -4 -4 -4 -4 -3 -3 -3 -3 -3 -2 -2 -2 -2 -2 ----------- Run | Yrd Mat Sub Rec Scr Fac Was Fac Upp Upp Zhi Pro Fac Was Fac Upp Upp War Pro Res Gar Res Tes Res Gar Res Qua Frg Matter Collected 8051 | 294 525 299 129 80 334 56 150 62 40 109 51 134 . 286 10 20 . 110 120 . 228 94 125 . 155 120 4520 Remotely . | . . . . . . . . . . . . . . . . . . . . . . . . . . . . Salvage Created 4647 | 99 496 180 148 . 672 . 157 81 172 109 . 94 . 531 . . . 137 14 . 147 52 138 . 154 188 1078 Parts 229 | 10 38 14 13 . 39 . 9 4 5 . . 3 . 3 . . . 4 5 . 9 1 8 . 7 4 53 Haulers Intercepted 3 | . 1 . . . . . 1 . . . . . . . . . . . . . . . . . 1 . . Recyclers Shooed . | . . . . . . . . . . . . . . . . . . . . . . . . . . . . Parts Field Recycled . | . . . . . . . . . . . . . . . . . . . . . . . . . . . . Retrieved Matter . | . . . . . . . . . . . . . . . . . . . . . . . . . . . . Parts Self-Destructed 13 | . . 5 . . . . . 3 1 . . . . . . . . 4 . . . . . . . . . Prevented 4 | . . . . . . . . . . . . . . . 4 . . . . . . . . . . . . Kills | -11 -10 -10 -7 -7 -5 -5 -5 -5 -5 -5 -4 -4 -4 -4 -4 -4 -4 -3 -3 -3 -3 -3 -2 -2 -2 -2 -2 ------- Run | Yrd Mat Sub Rec Scr Fac Was Fac Upp Upp Zhi Pro Fac Was Fac Upp Upp War Pro Res Gar Res Tes Res Gar Res Qua Frg Combat Hostiles Destroyed 73 | . 11 6 2 . 12 . . 2 1 . . . . . . . . . . . 4 . . . . . 35 Melee 20 | . . . . . 9 . . . 1 . . . . . . . . . . . . . . . . . 10 Guns 21 | . 10 3 2 . . . . . . . . . . . . . . . . . . . . . . . 6 Cannons 2 | . . . . . . . . 2 . . . . . . . . . . . . . . . . . . . AOE 30 | . 1 3 . . 3 . . . . . . . . . . . . . . . 4 . . . . . 19 Classes Destroyed 22 | 2 5 2 . . 2 . . . . . . . . . . . . . . . . . . . . . 11 Worker 1 | . . . . . 1 . . . . . . . . . . . . . . . . . . . . . . Builder 4 | . 1 . 1 . 1 . 1 . . . . . . . . . . . . . . . . . . . . Tunneler 3 | 2 . . . . 1 . . . . . . . . . . . . . . . . . . . . . . Hauler 3 | . 1 . . . . . 1 . . . . . . . . . . . . . . . . . 1 . . Recycler 6 | 1 . . . . 1 . . . . . . . . 3 . . . . . . . . . . . 1 . Mechanic 7 | . . . . . . . . . . . . . . . . . . . . . . . . . . . 7 Operator 5 | . . . . . 1 . . . . . . . . 1 . . . . 1 . . 1 1 . . . . Drone 7 | . . . . . . . . . . . . . . . . . . . . . . . . . . . 7 Watcher 22 | . 2 . . . 2 . 2 . . . . 3 . 2 . . . . . . 2 1 3 . 1 1 3 Swarmer 20 | . 2 3 . . 5 . . 1 1 . . . . . . . . . . . 4 . . . . . 4 Grunt 22 | . 9 . . . 7 . . 1 . . . . . . . . . . . . . . . . . . 5 Brawler 1 | . . . . . . . . . . . . . . . . . . . . . . . . . . . 1 Duelist 1 | . . . . . . . . . . . . . . . . . . . . . . . . . . . 1 Protector 1 | . . . . . . . . . . . . . . . . . . . . . . . . . . . 1 Researcher 1 | . . . . . . . . . . . . . . . . . . . . . . . . . . . 1 Sentry 5 | . . 1 2 . . . . . . . . . . . . . . . . . . . . . . . 2 Specialist 3 | . . . . . . . . . . . . . . . . . . . . . . . . . . . 3 Hunter 2 | . . . . . . . . . . . . . . . . . . . . . . . . . . . 2 Programmer 4 | . . . . . . . . . . . . . . . . . . . . . . . . . . . 4 Hotshot 2 | . . . . . . . . . . . . . . . . . . . . . . . . . . . 2 Striker 1 | . . . . . . . . . . . . . . . . . . . . . . . . . . . 1 Executioner 2 | . . . . . . . . . . . . . . . . . . . . . . . . . . . 2 Subdweller 2 | . . 2 . . . . . . . . . . . . . . . . . . . . . . . . . Best Kill Streak 6 | 1 4 3 2 . 6 . 3 2 1 . . 1 . 4 . . . . 1 . 4 1 2 . 1 1 5 Combat Bots Only 5 | . 3 3 2 . 5 . . 2 1 . . . . . . . . . . . 4 . . . . . 5 Max Kills in Single Turn 4 | 1 1 3 1 . 1 . 1 1 1 . . 1 . 1 . . . . 1 . 4 1 1 . 1 1 3 Gunslinging . | . . . . . . . . . . . . . . . . . . . . . . . . . . . . Exploded 4 | . 1 3 . . 1 . . . . . . . . . . . . . . . 4 . . . . . 3 Melee 1 | . . . . . 1 . . . 1 . . . . . . . . . . . . . . . . . 1 Uniques/NPCs Destroyed . | . . . . . . . . . . . . . . . . . . . . . . . . . . . . Combat | -11 -10 -10 -7 -7 -5 -5 -5 -5 -5 -5 -4 -4 -4 -4 -4 -4 -4 -3 -3 -3 -3 -3 -2 -2 -2 -2 -2 -------- Run | Yrd Mat Sub Rec Scr Fac Was Fac Upp Upp Zhi Pro Fac Was Fac Upp Upp War Pro Res Gar Res Tes Res Gar Res Qua Frg Hostile Shots Fired 753 | . 67 18 63 . 76 . 118 35 42 . . 14 . 37 . 10 10 . 2 12 24 6 9 8 12 4 186 Missed 350 | . 17 5 31 . 21 . 55 9 26 . . 10 . 22 . 8 6 . 1 9 16 3 5 4 7 3 92 Hits 403 | . 50 13 32 . 55 . 63 26 16 . . 4 . 15 . 2 4 . 1 3 8 3 4 4 5 1 94 Melee 3 | . . . . . . . . . . . . . . . . . . . . . . . . . . . 3 Projectile 400 | . 50 13 32 . 55 . 63 26 16 . . 4 . 15 . 2 4 . 1 3 8 3 4 4 5 1 91 AOE 3 | . . 2 . . . . . . . . . . . 1 . . . . . . . . . . . . . Critical Strikes 14 | . . . . . 4 . . 3 . . . . . 1 . . 1 . . . . . . . . . 5 Actively Blocked 5 | . . . . . . . . . . . . . . . . . . . . . . . . . . . 5 Damage Taken 8904 | . 654 372 198 . 1179 . 1097 534 254 . . 80 . 234 . 40 106 . 28 65 136 67 88 395 74 . 3303 Core 1656 | . 135 44 28 . 282 . 442 55 179 . . . . . . . 25 . . . 17 . . 103 22 . 324 Absorbed by Shields . | . . . . . . . . . . . . . . . . . . . . . . . . . . . . Redirected to Shielding 676 | . . . . . . . . . . . . . . 76 . 18 . . . 34 . . . 114 20 . 414 Regen/Repaired (Parts) 1540 | . . . . . 32 . . . . . . . . 8 . . 56 . . . 109 . . . . 156 1179 Core Remaining (%) 60 | 100 . . . 17 . . . . . . 4 . . . . . . 97 . . . 98 . . . . 48 Volleys Fired 243 | 13 60 12 9 . 4 . 2 8 . . . . . . . 1 . . 4 . 1 26 10 10 2 1 80 Largest 2 | 2 2 2 2 . 1 . 1 1 . . . . . . . 1 . . 1 . 1 1 1 1 1 1 2 Hottest 300 | 40 100 95 46 . 30 . 98 98 . . . . . . . 20 . . 90 . 49 90 90 90 90 90 300 Shots Fired 366 | 26 114 23 17 . 4 . 2 8 . . . . . . . 1 . . 4 . 1 26 10 10 2 1 117 Gun 257 | 26 106 19 17 . . . . . . . . . . . . . . . . . . . . . . . 89 Cannon 68 | . . . . . . . 2 8 . . . . . . . . . . 2 . . 26 10 10 2 1 7 Launcher 32 | . 2 4 . . 4 . . . . . . . . . . . . . . . 1 . . . . . 21 Special 9 | . 6 . . . . . . . . . . . . . . 1 . . 2 . . . . . . . . Kinetic 238 | 26 100 6 17 . . . . . . . . . . . . . . . . . . . . . . . 89 Thermal 75 | . 6 . . . . . 2 8 . . . . . . . 1 . . 2 . . 26 10 10 2 1 7 Explosive 32 | . 2 4 . . 4 . . . . . . . . . . . . . . . 1 . . . . . 21 Electromagnetic 19 | . 6 13 . . . . . . . . . . . . . . . . . . . . . . . . . Robot Hit Streak 20 | 6 20 8 5 . 1 . . 3 . . . . . . . . . . 2 . . 1 . . . . 7 Robot Miss Streak 8 | 3 8 2 5 . 2 . . 1 . . . . . . . . . . . . 1 . . . . . 4 Penetration Max 1 | . . . . . . . . . . . . . . . . . . . . . . . . . . . 1 Secondary Targets 1 | . 1 . . . . . . . . . . . . . . . . . . . . . . . . . . Max Gunslinging Chain 1 | . 1 . . . . . . . . . . . . . . . . . . . . . . . . . . Shots Hit Robots 294 | 17 69 18 9 . 32 . 8 5 5 9 . 8 . 10 . . . 2 3 . 2 7 6 . 2 2 80 Core Hits 160 | 4 24 11 8 . 22 . 2 3 3 1 . 2 . 2 . . . 2 1 . 4 2 4 . 2 . 63 Critical Kills 1 | . . . . . . . . . . . . . . . . . . . . . . 1 . . . . . Critical Parts Destroyed 4 | . . . . . . . . . . . . . . 3 . . . . . . . . . . . . 1 Critical Strikes 13 | . . . . . 4 . . . . 1 . 1 . 3 . . . . . . 1 2 . . . . 1 Meltdown 1 | . . . . . . . . . . . . . . . . . . . . . . 1 . . . . . Destroy 1 | . . . . . . . . . . . . . . . . . . . . . . . . . . . 1 Smash 3 | . . . . . . . . . . . . . . 3 . . . . . . . . . . . . . Sever 7 | . . . . . 4 . . . . 1 . 1 . . . . . . . . . 1 . . . . . Impale 1 | . . . . . . . . . . . . . . . . . . . . . 1 . . . . . . Melee Attacks 468 | . . 15 1 . 66 . 38 . 13 9 3 39 . 29 . 7 . 3 42 14 32 26 30 2 14 15 70 Impact 36 | . . . . . . . 10 . . . . 5 . 19 . 2 . . . . . . . . . . . Slashing 420 | . . 15 1 . 66 . 25 . 13 9 3 34 . 10 . 5 . 3 42 14 25 24 30 2 14 15 70 Piercing 9 | . . . . . . . . . . . . . . . . . . . . . 7 2 . . . . . Sneak Attacks 39 | . . 2 1 . 4 . 5 . . . . . . 3 . . . . . . 1 1 2 . 2 2 16 Combat Hostiles 3 | . . . . . . . . . . . . . . . . . . . . . . . . . . . 3 Follow-up Attacks 1 | . . . . . . . . . . . . . . 1 . . . . . . . . . . . . . Damage Inflicted 23820 | 217 1167 343 217 . 2077 . 286 162 259 642 . 402 . 663 . . . 142 48 . 540 362 382 . 179 285 15447 Guns 3299 | 217 1081 206 141 . . . . . . . . . . . . . . . . . . . . . . . 1654 Cannons 498 | . . . . . . . . 162 . . . . . . . . . . . . . 36 . . . . 300 Explosions 10659 | . 78 102 . . 359 . . . . . . . . . . . . . . . 373 . . . . . 9747 Melee 9345 | . . 35 76 . 1718 . 275 . 259 642 . 402 . 663 . . . 142 48 . 167 326 382 . 179 285 3746 Ramming 19 | . 8 . . . . . 11 . . . . . . . . . . . . . . . . . . . . Kinetic 3050 | 217 978 60 141 . . . . . . . . . . . . . . . . . . . . . . . 1654 Thermal 535 | . . . . . 37 . . 162 . . . . . . . . . . . . . 36 . . . . 300 Explosive 10622 | . 78 102 . . 322 . . . . . . . . . . . . . . . 373 . . . . . 9747 Electromagnetic 249 | . 103 146 . . . . . . . . . . . . . . . . . . . . . . . . . Impact 685 | . . . . . . . . . . . . 139 . 546 . . . . . . . . . . . . . Slashing 8493 | . . 35 76 . 1718 . 275 . 259 642 . 263 . 117 . . . 142 48 . . 326 382 . 179 285 3746 Piercing 167 | . . . . . . . . . . . . . . . . . . . . . 167 . . . . . . Highest Corruption 12 | . . . . 2 1 1 2 1 1 1 1 . 8 8 3 3 3 . 2 2 2 1 . 5 . . 12 Average Corruption 3 | . . . . 2 1 1 1 1 1 1 1 . 8 3 3 3 3 . 2 2 1 1 . 2 . . 6 Corruption Purged 28 | . . . . . . 1 3 . . . . . . 5 . . . . . . 2 . . 5 . . 12 Corruption Blocked . | . . . . . . . . . . . . . . . . . . . . . . . . . . . . Effects 69 | . . . . 8 3 . 4 3 . 1 . . 1 7 . 4 . . . . 1 . . 1 . . 36 Message Errors 19 | . . . . 1 1 . . . . . . . . 2 . 3 . . . . 1 . . 1 . . 10 Matter Fused 15 | . . . . 2 . . 2 1 . 1 . . . 1 . . . . . . . . . . . . 8 Heat Flow Errors 5 | . . . . . . . . 1 . . . . . 1 . 1 . . . . . . . . . . 2 Energy Discharges 8 | . . . . 2 . . . . . . . . . . . . . . . . . . . . . . 6 Parts Rejected 1 | . . . . . . . . . . . . . . . . . . . . . . . . . . . 1 Parts Fused 3 | . . . . . 1 . . . . . . . . 1 . . . . . . . . . . . . 1 Data Loss (minor) 7 | . . . . 2 1 . 1 . . . . . . . . . . . . . . . . . . . 3 Data Loss (major) 6 | . . . . . . . 1 1 . . . . 1 2 . . . . . . . . . . . . 1 Alerts 2 | . . . . 1 . . . . . . . . . . . . . . . . . . . . . . 1 Misdirections 2 | . . . . . . . . . . . . . . . . . . . . . . . . . . . 2 Weapon Failures 1 | . . . . . . . . . . . . . . . . . . . . . . . . . . . 1 Overload Shots . | . . . . . . . . . . . . . . . . . . . . . . . . . . . . Overflow Damage 2987 | . . . 46 . 216 . 42 . 35 37 . 76 . 308 . . . . . . 241 46 85 . . 200 1655 Projectiles 130 | . . . . . . . . . . . . . . . . . . . . . . . . . . . 130 Explosions 949 | . . . . . . . . . . . . . . . . . . . . . 62 . . . . . 887 Melee 1908 | . . . 46 . 216 . 42 . 35 37 . 76 . 308 . . . . . . 179 46 85 . . 200 638 Knockbacks 3 | . . . . . . . . . . . . 1 . 2 . . . . . . . . . . . . . Impact 3 | . . . . . . . . . . . . 1 . 2 . . . . . . . . . . . . . Kinetic . | . . . . . . . . . . . . . . . . . . . . . . . . . . . . Secondary . | . . . . . . . . . . . . . . . . . . . . . . . . . . . . Self-Inflicted Damage 51 | . . 47 . . . . 4 . . . . . . . . . . . . . . . . . . . . Shots 2 | . . 2 . . . . . . . . . . . . . . . . . . . . . . . . . Rammed 8 | . 3 . . . . . 5 . . . . . . . . . . . . . . . . . . . . Targets Rammed 8 | . 3 . . . . . 5 . . . . . . . . . . . . . . . . . . . . Kicked . | . . . . . . . . . . . . . . . . . . . . . . . . . . . . Crushed . | . . . . . . . . . . . . . . . . . . . . . . . . . . . . Highest Temperature 317 | . 83 . 22 . 7 . 62 125 . . 5 48 2 317 . 256 191 120 206 3 6 87 159 132 254 . 164 Average Temperature 36 | . 20 . 8 . 7 . 26 41 . . 2 5 1 22 . 85 77 48 52 2 3 29 57 49 46 . 76 Received Heat Transfer 1174 | . 288 27 18 . 301 . 117 117 9 . . . . . . . 57 . 9 9 . . . 18 . . 204 Effects 2 | . . . . . . . . . . . . . . 2 . . . . . . . . . . . . . Interference 2 | . . . . . . . . . . . . . . 2 . . . . . . . . . . . . . Siege Activations . | . . . . . . . . . . . . . . . . . . . . . . . . . . . . Martial Activations . | . . . . . . . . . . . . . . . . . . . . . . . . . . . . Shielding Activations . | . . . . . . . . . . . . . . . . . . . . . . . . . . . . Robots Disrupted . | . . . . . . . . . . . . . . . . . . . . . . . . . . . . Combat Hostiles . | . . . . . . . . . . . . . . . . . . . . . . . . . . . . Robots Corrupted 5 | . . . . . . . . . . . . 1 . 4 . . . . . . . . . . . . . Combat Hostiles . | . . . . . . . . . . . . . . . . . . . . . . . . . . . . Parts Fried 18 | . . . . . . . . . . . . 4 . 14 . . . . . . . . . . . . . Impact Corruptions 13 | . . . . . . . . . . . . 2 . 11 . . . . . . . . . . . . . Robots Melted 1 | . . . . . . . . . . . . . . . . . . . . . . 1 . . . . . Combat Hostiles . | . . . . . . . . . . . . . . . . . . . . . . . . . . . . Parts Melted 1 | . . . . . . . . . . . . . . . . . . . . . . . . . . . 1 Heat Transferred 337 | . . . . . 50 . . 250 . . . . . . . . . . . . . 37 . . . . . Parts Sabotaged . | . . . . . . . . . . . . . . . . . . . . . . . . . . . . Parts Stolen . | . . . . . . . . . . . . . . . . . . . . . . . . . . . . Parts Stripped . | . . . . . . . . . . . . . . . . . . . . . . . . . . . . Power Chain Reactions . | . . . . . . . . . . . . . . . . . . . . . . . . . . . . Alert | -11 -10 -10 -7 -7 -5 -5 -5 -5 -5 -5 -4 -4 -4 -4 -4 -4 -4 -3 -3 -3 -3 -3 -2 -2 -2 -2 -2 ------- Run | Yrd Mat Sub Rec Scr Fac Was Fac Upp Upp Zhi Pro Fac Was Fac Upp Upp War Pro Res Gar Res Tes Res Gar Res Qua Frg Maximum Alert Level 4 | . . . . . 3 1 1 . . . . 1 . . . . . . . 1 1 . . 1 . . 4 Low Security (%) 67 | 100 100 . 100 . 61 30 77 . . . . 86 100 100 . . . . 100 92 49 100 100 13 100 100 10 Level 1 10 | . . . . . 8 69 22 . . . . 13 . . . . . . . 7 50 . . 86 . . 13 Level 2 12 | . . . . . 29 . . . . . . . . . . . . . . . . . . . . . 39 Level 3 3 | . . . . . . . . . . . . . . . . . . . . . . . . . . . 15 Level 4 5 | . . . . . . . . . . . . . . . . . . . . . . . . . . . 21 Level 5 . | . . . . . . . . . . . . . . . . . . . . . . . . . . . . High Security . | . . . . . . . . . . . . . . . . . . . . . . . . . . . . Max Security . | . . . . . . . . . . . . . . . . . . . . . . . . . . . . Peak Influence 1326 | 5 173 . 53 . 703 244 291 . . . . 227 46 57 . . . . 56 210 261 144 55 318 189 61 1326 Initial 244 | . . . . . . 244 121 . . . . . 46 25 . . . . . 7 117 144 . . 167 14 . Average 235 | . 84 . 17 . 195 212 143 . . . . 65 45 19 . . . . 11 74 189 71 21 248 86 14 690 Influence Increases 7699 | 15 443 90 237 . 1255 . 636 62 145 5 . 624 . 271 . 75 . 10 257 203 390 133 200 338 89 148 2073 Destroy 0b10 Robot/C 1395 | . 220 80 40 . 340 . . 60 20 . . . . . . . . . . . 80 . . 15 . . 540 Destroy 0b10 Robot/NC 302 | 15 20 . 5 . 35 . 20 . 10 5 . 15 . 30 . . . 10 5 . 10 10 20 . 12 8 72 Destroy Leader 278 | . 66 10 . . 54 . 6 . 10 . . 6 . 4 . . . . . . 14 2 6 . 4 2 94 Allied During Kill 71 | . . . . . 42 . . 2 . . . . . . . . . . . . . . . 12 2 . 13 Successful Hack 569 | . 17 . 12 . 55 . 65 . . . . 80 . 74 . . . . 39 . 60 13 15 15 17 39 68 Select Force Hacks 290 | . 60 . 180 . 30 . 20 . . . . . . . . . . . . . . . . . . . . Disable Machine 402 | . 30 . . . 120 . . . . . . 15 . . . . . . . . . 45 . . . 48 144 Anti-Garrison Action 713 | . . . . . 200 . . . . . . 200 . . . . . . . 50 . . . 150 . . 113 Destroy Structure 1234 | . 15 . . . 184 . 30 . . . . 38 . 28 . . . . 78 33 76 48 84 146 42 27 405 Partial Spotted 465 | . . . . . . . 15 . . . . 60 . 30 . . . . 90 15 60 . 75 . 12 . 108 Lose Combat Pursuer 1980 | . 15 . . . 195 . 480 . 105 . . 210 . 105 . 75 . . 45 105 90 15 . . . 24 516 Influence Decreases 6375 | 15 356 177 200 37 556 525 547 319 76 80 . 491 97 296 11 40 35 10 247 3 343 390 200 40 361 174 749 Entered New Map 1253 | . . 43 . 37 . 455 53 98 2 75 . . 87 11 5 . 35 . . 3 93 113 . . 131 12 . Time Decay 4166 | 15 326 134 200 . 366 70 334 196 64 5 . 250 10 204 6 40 . 10 247 . 230 277 177 . 190 162 653 Lost Part 431 | . 30 . . . 110 . 160 25 10 . . . . 20 . . . . . . . . . 20 . . 56 Lost Ally 248 | . . . . . 80 . . . . . . 20 . 5 . . . . . . 20 . 23 20 40 . 40 Purge Threat 277 | . . . . . . . . . . . . 221 . 56 . . . . . . . . . . . . . Squads Dispatched 97 | . 3 . . . 14 . 12 . 1 . . 11 . 10 . . . . 8 . 8 3 10 . 5 3 9 Investigation 62 | . 2 . . . 11 . 9 . . . . 9 . 8 . . . . 5 . 3 . 7 . 3 1 4 Extermination 21 | . . . . . 2 . 2 . . . . 2 . 1 . . . . 3 . 3 2 3 . 1 2 . Reinforcement 13 | . 1 . . . 1 . 1 . . . . . . 1 . . . . . . 2 1 . . 1 . 5 Assault 1 | . . . . . . . . . 1 . . . . . . . . . . . . . . . . . . Garrison . | . . . . . . . . . . . . . . . . . . . . . . . . . . . . Intercept . | . . . . . . . . . . . . . . . . . . . . . . . . . . . . Searches Triggered . | . . . . . . . . . . . . . . . . . . . . . . . . . . . . Construction Impeded . | . . . . . . . . . . . . . . . . . . . . . . . . . . . . Haulers Reinforced . | . . . . . . . . . . . . . . . . . . . . . . . . . . . . Active Scanning Responses . | . . . . . . . . . . . . . . . . . . . . . . . . . . . . Cargo Convoy Interrupts . | . . . . . . . . . . . . . . . . . . . . . . . . . . . . Stealth | -11 -10 -10 -7 -7 -5 -5 -5 -5 -5 -5 -4 -4 -4 -4 -4 -4 -4 -3 -3 -3 -3 -3 -2 -2 -2 -2 -2 --------- Run | Yrd Mat Sub Rec Scr Fac Was Fac Upp Upp Zhi Pro Fac Was Fac Upp Upp War Pro Res Gar Res Tes Res Gar Res Qua Frg Distress Signals 24 | . . . . . 2 . 3 . . . . 2 . . . . . . 1 . 1 2 1 . . . 12 Communications Jammed . | . . . . . . . . . . . . . . . . . . . . . . . . . . . . Distress Signals . | . . . . . . . . . . . . . . . . . . . . . . . . . . . . Times Spotted 490 | . 25 8 2 . 36 . 52 4 14 . . 23 3 14 . 10 20 . 10 14 19 14 20 4 10 3 185 Peak Tracking Total 18 | . 5 3 2 . 7 . 18 3 10 . . 11 3 5 . 6 12 . 3 10 6 9 5 6 9 1 13 Tactical Retreats 102 | . 4 1 . . 7 . 11 . 3 . . 8 . 5 . 2 . . 3 1 3 1 3 1 2 2 45 Traps | -11 -10 -10 -7 -7 -5 -5 -5 -5 -5 -5 -4 -4 -4 -4 -4 -4 -4 -3 -3 -3 -3 -3 -2 -2 -2 -2 -2 ------- Run | Yrd Mat Sub Rec Scr Fac Was Fac Upp Upp Zhi Pro Fac Was Fac Upp Upp War Pro Res Gar Res Tes Res Gar Res Qua Frg Traps Triggered 15 | . 2 . . . 2 . 2 . . . . 1 . 3 . . . . . 1 . 1 . 1 1 . 1 Indirectly . | . . . . . . . . . . . . . . . . . . . . . . . . . . . . Trap Hack Attempts . | . . . . . . . . . . . . . . . . . . . . . . . . . . . . Triggered . | . . . . . . . . . . . . . . . . . . . . . . . . . . . . Disarmed . | . . . . . . . . . . . . . . . . . . . . . . . . . . . . Reprogrammed . | . . . . . . . . . . . . . . . . . . . . . . . . . . . . Reused 1 | . . 1 . . . . . . . . . . . . . . . . . . . . . . . . . Traps Extracted . | . . . . . . . . . . . . . . . . . . . . . . . . . . . . Installed 1 | . . 1 . . . . . . . . . . . . . . . . . . . . . . . . . Triggered . | . . . . . . . . . . . . . . . . . . . . . . . . . . . . Most Traps Carried 1 | . . 1 . . . . . . . . . . . . . . . . . . . . . . . . . Machines | -11 -10 -10 -7 -7 -5 -5 -5 -5 -5 -5 -4 -4 -4 -4 -4 -4 -4 -3 -3 -3 -3 -3 -2 -2 -2 -2 -2 ---------- Run | Yrd Mat Sub Rec Scr Fac Was Fac Upp Upp Zhi Pro Fac Was Fac Upp Upp War Pro Res Gar Res Tes Res Gar Res Qua Frg Machines Disabled 42 | . 2 . . . 8 . . . . . . 1 . . . 1 1 . . . . 4 . 3 . 4 18 Max in Single Turn 4 | . 1 . . . 4 . . . . . . 1 . . . 1 1 . . . . 1 . 2 . 1 2 Garrison Access 10 | . . . . . 1 . . . . . . 2 . 1 . . . . 3 . . . 1 . . 1 1 Garrison Relay 1 | . . . . . . . . . . . . . . . . . . . . . . . . 1 . . . Phase Generator 1 | . . . . . . . . . . . . . . . . . . . . . . . . 1 . . . Machines Repaired . | . . . . . . . . . . . . . . . . . . . . . . . . . . . . Machines Dismantled 1 | . . . . . . . . . . . . . . . . . 1 . . . . . . . . . . Machines Sabotaged . | . . . . . . . . . . . . . . . . . . . . . . . . . . . . Overloaded Fab Kills . | . . . . . . . . . . . . . . . . . . . . . . . . . . . . Hacking | -11 -10 -10 -7 -7 -5 -5 -5 -5 -5 -5 -4 -4 -4 -4 -4 -4 -4 -3 -3 -3 -3 -3 -2 -2 -2 -2 -2 --------- Run | Yrd Mat Sub Rec Scr Fac Was Fac Upp Upp Zhi Pro Fac Was Fac Upp Upp War Pro Res Gar Res Tes Res Gar Res Qua Frg Machines Accessed 194 | . 7 . 10 2 19 . 17 . . 4 . 23 . 18 . 1 8 . 18 1 14 7 13 2 5 12 13 Terminals 100 | . 5 . 4 . 7 . 8 . . . . 13 . 9 . 1 . . 9 1 10 6 5 2 3 10 7 Fabricators 12 | . . . . . 1 . 2 . . . . 1 . 1 . . . . 1 . 1 . 2 . 1 . 2 Repair Stations 7 | . . . . . 2 . . . . . . . . 1 . . . . . . 1 . . . 1 1 1 Recycling Units 43 | . 2 . 6 . 6 . 6 . . . . 5 . 6 . . . . 4 . 2 . 3 . . . 3 Scanalyzers 7 | . . . . . 2 . 1 . . . . 2 . . . . . . . . . 1 1 . . . . Garrison Access 11 | . . . . . 1 . . . . . . 2 . 1 . . . . 4 . . . 2 . . 1 . Total Hacks 589 | . 24 . 28 21 57 . 48 . . 17 . 67 . 53 . 4 19 . 49 4 46 23 35 6 16 39 33 Successful 408 | . 14 . 14 21 37 . 26 . . 17 . 44 . 33 . 4 19 . 38 3 37 13 29 2 8 22 27 Failed 179 | . 10 . 14 . 20 . 22 . . . . 22 . 20 . . . . 10 1 9 10 6 4 8 17 6 Catastrophic 16 | . . . 3 . 2 . 2 . . . . 1 . 2 . . . . . . . . . 1 2 2 1 Database Lockouts 2 | . . . . . . . . . . . . 1 . . . . . . 1 . . . . . . . . Manual 368 | . 22 . 17 . 39 . 32 . . . . 40 . 38 . . . . 33 3 35 21 29 4 12 23 20 Terminals 361 | . 19 . 9 . 21 . 34 . . . . 47 . 38 . 4 . . 34 4 37 21 23 6 12 33 19 Fabricators 39 | . . . . . 5 . 4 . . . . 2 . 3 . . . . 6 . 4 . 5 . 2 . 8 Repair Stations 18 | . . . . . 3 . . . . . . . . 4 . . . . . . 2 . . . 2 5 2 Recycling Units 73 | . 5 . 19 . 13 . 7 . . . . 7 . 7 . . . . 5 . 3 . 3 . . . 4 Scanalyzers 25 | . . . . . 13 . 3 . . . . 6 . . . . . . . . . 2 1 . . . . Garrison Access 16 | . . . . . 2 . . . . . . 5 . 1 . . . . 4 . . . 3 . . 1 . Terminal Hacks 147 | . 1 . . 21 2 . 6 . . 17 . 15 . 10 . 4 19 . 12 2 15 3 8 2 1 5 4 Record 47 | . . . . 21 . . . . . 5 . . . . . 4 17 . . . . . . . . . . Part Schematic 13 | . . . . . . . . . . 4 . 3 . 1 . . . . 1 . . 2 1 . . . 1 Robot Schematic 2 | . . . . . . . . . . . . 1 . 1 . . . . . . . . . . . . . Robot Analysis 7 | . . . . . . . . . . 4 . . . . . . . . . . 2 . . . . 1 . Prototype ID Bank 9 | . . . . . . . 1 . . 4 . 2 . 1 . . . . 1 . . . . . . . . Open Door 2 | . . . . . . . . . . . . . . . . . 2 . . . . . . . . . . Branch Access Points 5 | . . . . . . . 1 . . . . 1 . . . . . . . . 1 . 1 . . 1 . Emergency Access Points 2 | . . . . . . . 1 . . . . . . . . . . . . 1 . . . . . . . Terminal Index 10 | . 1 . . . 1 . 1 . . . . 1 . 1 . . . . 1 . 1 . 2 . . 1 . Fabricator Index 4 | . . . . . . . . . . . . 1 . . . . . . 1 . 1 . 1 . . . . Repair Station Index 2 | . . . . . . . . . . . . 1 . . . . . . . . 1 . . . . . . Recycling Unit Index 2 | . . . . . . . . . . . . . . . . . . . . . . . 1 . . . 1 Garrison Index 1 | . . . . . . . . . . . . . . . . . . . . . 1 . . . . . . Alert Level 1 | . . . . . 1 . . . . . . . . . . . . . . . . . . . . . . Unreport Threat 5 | . . . . . . . . . . . . 2 . 3 . . . . . . . . . . . . . Locate Traps 3 | . . . . . . . . . . . . . . . . . . . 1 . 1 . . . . . 1 Extermination Status 1 | . . . . . . . . . . . . . . . . . . . . . 1 . . . . . . Recall Investigation 3 | . . . . . . . . . . . . . . . . . . . 2 . 1 . . . . . . Recall Extermination 13 | . . . . . . . 1 . . . . 2 . 2 . . . . 2 . 2 1 2 . . 1 . Recall Reinforcements 1 | . . . . . . . . . . . . . . . . . . . . . 1 . . . . . . Registered Components 2 | . . . . . . . . . . . . . . 1 . . . . 1 . . . . . . . . Registered Prototypes 2 | . . . . . . . . . . . . 1 . . . . . . 1 . . . . . . . . Zone Layout 7 | . . . . . . . 1 . . . . . . . . . . . 1 . 2 . . . 1 1 1 Garrison Registry 2 | . . . . . . . . . . . . . . . . . . . . 1 . . . 1 . . . Patrol Navigation 1 | . . . . . . . . . . . . . . . . . . . . . . . . 1 . . . Fabricator Hacks 26 | . . . . . 3 . 1 . . . . 1 . 2 . . . . 5 . 3 . 2 . 1 . 8 Network Status 1 | . . . . . . . . . . . . . . . . . . . 1 . . . . . . . . Load Schematic 15 | . . . . . 2 . 1 . . . . 1 . 1 . . . . 2 . 1 . 2 . 1 . 4 Build 10 | . . . . . 1 . . . . . . . . 1 . . . . 2 . 2 . . . . . 4 Repair Station Hacks 10 | . . . . . . . . . . . . . . 1 . . . . . . 2 . . . 1 4 2 Scan Component 6 | . . . . . . . . . . . . . . 1 . . . . . . 1 . . . 1 2 1 Repair 4 | . . . . . . . . . . . . . . . . . . . . . 1 . . . . 2 1 Recycling Unit Hacks 6 | . 2 . 4 . . . . . . . . . . . . . . . . . . . . . . . . Retrieve Matter 2 | . 2 . . . . . . . . . . . . . . . . . . . . . . . . . . Retrieve Components 4 | . . . 4 . . . . . . . . . . . . . . . . . . . . . . . . Scanalyzer 18 | . . . . . 9 . 2 . . . . 4 . . . . . . . . . 2 1 . . . . Insert Component 10 | . . . . . 5 . 1 . . . . 2 . . . . . . . . . 1 1 . . . . Analyze 8 | . . . . . 4 . 1 . . . . 2 . . . . . . . . . 1 . . . . . Garrison Access Hacks 9 | . . . . . . . . . . . . 1 . 1 . . . . 4 . . . 2 . . 1 . Unlock Access 2 | . . . . . . . . . . . . . . . . . . . 1 . . . 1 . . . . Seal Access 7 | . . . . . . . . . . . . 1 . 1 . . . . 3 . . . 1 . . 1 . Unauthorized Hacks 191 | . 10 . 10 . 23 . 17 . . . . 23 . 19 . . . . 17 1 17 8 16 . 5 12 13 Terminals 131 | . 8 . 4 . 12 . 9 . . . . 16 . 11 . . . . 12 1 14 8 10 . 4 12 10 Track 8 | . . . . . 1 . . . . . . 1 . 1 . . . . 1 . 1 . 1 . . 1 1 Assimilate 11 | . . . . . 1 . . . . . . 2 . 1 . . . . . . 3 1 2 . 1 . . Botnet 46 | . 3 . 2 . 4 . 3 . . . . 7 . 4 . . . . 4 . 4 2 3 . 1 6 3 Disrupt 2 | . . . . . . . 1 . . . . 1 . . . . . . . . . . . . . . . Skim 63 | . 5 . 2 . 6 . 5 . . . . 5 . 5 . . . . 7 . 6 5 4 . 2 5 6 Override 1 | . . . . . . . . . . . . . . . . . . . . 1 . . . . . . . Fabricators 10 | . . . . . 1 . 2 . . . . 1 . 1 . . . . 1 . 1 . 2 . 1 . . Prioritize 4 | . . . . . 1 . . . . . . . . 1 . . . . 1 . 1 . . . . . . Download 1 | . . . . . . . 1 . . . . . . . . . . . . . . . . . . . . Recompile 5 | . . . . . . . 1 . . . . 1 . . . . . . . . . . 2 . 1 . . Repair Stations 3 | . . . . . 2 . . . . . . . . 1 . . . . . . . . . . . . . Patch 3 | . . . . . 2 . . . . . . . . 1 . . . . . . . . . . . . . Recycling Units 43 | . 2 . 6 . 6 . 6 . . . . 5 . 6 . . . . 4 . 2 . 3 . . . 3 Tunnel 8 | . 2 . 6 . . . . . . . . . . . . . . . . . . . . . . . . Fedlink 32 | . . . . . 5 . 6 . . . . 5 . 6 . . . . 4 . 2 . 3 . . . 1 Scrapoids 1 | . . . . . 1 . . . . . . . . . . . . . . . . . . . . . . Scraphulk 2 | . . . . . . . . . . . . . . . . . . . . . . . . . . . 2 Scanalyzers 1 | . . . . . 1 . . . . . . . . . . . . . . . . . . . . . . Extract 1 | . . . . . 1 . . . . . . . . . . . . . . . . . . . . . . Garrison Access 3 | . . . . . 1 . . . . . . 1 . . . . . . . . . . 1 . . . . Reprogram 1 | . . . . . . . . . . . . . . . . . . . . . . . 1 . . . . Jam 2 | . . . . . 1 . . . . . . 1 . . . . . . . . . . . . . . . Data Cores Recovered 4 | . . . . . . . . . . . . . . 1 . . . . 1 . . . 1 . 1 . . Used 1 | . . . . . . . . . . . . . . . . . . . 1 . . . . . . . . Hacking Detections 121 | . 6 . 7 . 15 . 10 . . . . 14 . 9 . 1 . . 10 1 13 6 9 2 5 7 6 Full Trace Events 12 | . . . 2 . 1 . . . . . . 2 . . . . . . 1 . 1 . 1 1 1 1 1 Feedback Events . | . . . . . . . . . . . . . . . . . . . . . . . . . . . . Feedback Blocked 1 | . . . . . . . . . . . . . . . . . . . . . . . . . 1 . . Robot Schematics Acquired 3 | . . . . . . . . . . . . 1 . 1 . . . . . . . . . . . . 1 Robots Built . | . . . . . . . . . . . . . . . . . . . . . . . . . . . . Authchips . | . . . . . . . . . . . . . . . . . . . . . . . . . . . . Time . | . . . . . . . . . . . . . . . . . . . . . . . . . . . . Total Robot Build Rating . | . . . . . . . . . . . . . . . . . . . . . . . . . . . . Part Schematics Acquired 31 | . . . . . 12 . 2 . . 4 . 5 . 1 . . . . 1 . . 3 . . . . 3 Parts Built 16 | . . . . . 2 . . . . . . . . 2 . . . . 2 . 4 . . . . . 6 Authchips 6 | . . . . . 1 . . . . . . . . 1 . . . . 1 . . . . . . . 3 Time 529 | . . . . . 42 . . . . . . . . 64 . . . . 177 . 60 . . . . . 186 Total Part Build Rating 105 | . . . . . 8 . . . . . . . . 16 . . . . 13 . 30 . . . . . 38 Parts Repaired 4 | . . . . . . . . . . . . . . . . . . . . . 1 . . . . 2 1 Time 140 | . . . . . . . . . . . . . . . . . . . . . 26 . . . . 74 40 Parts Recycled . | . . . . . . . . . . . . . . . . . . . . . . . . . . . . Recycled Matter . | . . . . . . . . . . . . . . . . . . . . . . . . . . . . Retrieved Matter 206 | . 206 . . . . . . . . . . . . . . . . . . . . . . . . . . Retrieved Components 6 | . . . 6 . . . . . . . . . . . . . . . . . . . . . . . . Parts Scanalyzed 9 | . . . . . 5 . 1 . . . . 2 . . . . . . . . . 1 . . . . . Part Schematics Acquired 8 | . . . . . 4 . 1 . . . . 2 . . . . . . . . . 1 . . . . . Parts Damaged 1 | . . . . . 1 . . . . . . . . . . . . . . . . . . . . . . Bothacking | -11 -10 -10 -7 -7 -5 -5 -5 -5 -5 -5 -4 -4 -4 -4 -4 -4 -4 -3 -3 -3 -3 -3 -2 -2 -2 -2 -2 ------------ Run | Yrd Mat Sub Rec Scr Fac Was Fac Upp Upp Zhi Pro Fac Was Fac Upp Upp War Pro Res Gar Res Tes Res Gar Res Qua Frg Used RIF Installer 2 | . . . . . . . . . . . . . . . . . . . . 1 . . . 1 . . . Threat Obfuscator 1 | . . . . . . . . . . . . . . . . . . . . . . . . 1 . . . Robots Hacked 2 | . . . . . . . 2 . . . . . . . . . . . . . . . . . . . . Non-combat 2 | . . . . . . . 2 . . . . . . . . . . . . . . . . . . . . Combat . | . . . . . . . . . . . . . . . . . . . . . . . . . . . . Robot Hacks Applied 2 | . . . . . . . 2 . . . . . . . . . . . . . . . . . . . . no_distress 1 | . . . . . . . 1 . . . . . . . . . . . . . . . . . . . . find_fabricator 1 | . . . . . . . 1 . . . . . . . . . . . . . . . . . . . . Relay Couplers Released 9 | . . . . . . . . . . . . . . 1 . . . . . . . . . 5 . . 3 Machine Destruction 9 | . . . . . . . . . . . . . . 1 . . . . . . . . . 5 . . 3 Fabnet Peak Effective % . | . . . . . . . . . . . . . . . . . . . . . . . . . . . . Robots Rewired 6 | . . . . . . . . . . . . . . . . . . . . . . . . 6 . . . Allies Hacked . | . . . . . . . . . . . . . . . . . . . . . . . . . . . . Hacks Repelled . | . . . . . . . . . . . . . . . . . . . . . . . . . . . . Allies | -11 -10 -10 -7 -7 -5 -5 -5 -5 -5 -5 -4 -4 -4 -4 -4 -4 -4 -3 -3 -3 -3 -3 -2 -2 -2 -2 -2 -------- Run | Yrd Mat Sub Rec Scr Fac Was Fac Upp Upp Zhi Pro Fac Was Fac Upp Upp War Pro Res Gar Res Tes Res Gar Res Qua Frg Total Allies 25 | . . . . . 5 . . 1 . . . 2 . 1 . . . . . . 2 . 6 6 . . 2 Largest Group 6 | . . . . . 5 . . 1 . . . 1 . 1 . . . . . . 1 . 6 6 2 . 2 Highest-Rated Group 278 | . . . . . 235 . . 138 . . . 26 . 10 . . . . . . 26 . 251 234 60 . 278 Highest-Rated Ally 139 | . . . . . 47 . . 138 . . . 26 . 10 . . . . . . 26 . 58 48 30 . 139 Total Orders 14 | . . . . . . . . . . . . . . 7 . . . . . . 1 . . 4 . . 2 STAY 7 | . . . . . . . . . . . . . . 6 . . . . . . 1 . . . . . . ROAM 3 | . . . . . . . . . . . . . . . . . . . . . . . . 3 . . . FOLLOW 2 | . . . . . . . . . . . . . . 1 . . . . . . . . . 1 . . . GUARD 2 | . . . . . . . . . . . . . . . . . . . . . . . . . . . 2 Ally Attacks 131 | . . . . . 35 . . 3 . . . . . . . . . . . . . . 8 21 10 . 54 Total Damage 4892 | . . . . . 1120 . . 181 . . . . . . . . . . . . . . 223 331 116 . 2921 Kills 16 | . . . . . 5 . . 1 . . . . . . . . . . . . . . . 1 1 . 8 Allies Corrupted . | . . . . . . . . . . . . . . . . . . . . . . . . . . . . Allies Melted 2 | . . . . . . . . . . . . . . . . . . . . . . . . . . . 2 Intel | -11 -10 -10 -7 -7 -5 -5 -5 -5 -5 -5 -4 -4 -4 -4 -4 -4 -4 -3 -3 -3 -3 -3 -2 -2 -2 -2 -2 ------- Run | Yrd Mat Sub Rec Scr Fac Was Fac Upp Upp Zhi Pro Fac Was Fac Upp Upp War Pro Res Gar Res Tes Res Gar Res Qua Frg Active Infowar (turns) 11101 | 14 658 . . 7 1182 143 710 . . 20 44 582 20 618 83 141 304 85 838 112 486 664 415 130 392 623 2830 Optics 2702 | . . . . 7 . . . . . . . . . . . . . . . . . . . . . . 2695 Sensors 10305 | . . . . . 1182 143 710 . . . . 529 20 618 83 141 304 85 838 112 486 664 415 130 392 623 2830 Structural 5385 | . . . . . 15 . 252 . . 20 44 574 20 325 81 141 304 85 833 . 436 664 415 117 392 623 44 Seismic 672 | 14 658 . . . . . . . . . . . . . . . . . . . . . . . . . . Triangulation 57 | . . . . . . . . . . . . 57 . . . . . . . . . . . . . . . Cloaking 2930 | . . . . . . . . . . . . . . . . . . . . . . . 33 . 371 583 1943 Jamming 936 | . . . . . . . . . . . . 121 . . . . . . 302 . . . . . . 379 134 ECM 1227 | . . . . . . . . . . . . . . . . . . . . . . . 380 88 25 23 711 Robot Analysis Total 7 | . . . . . . . . . . 4 . . . . . . . . . . 2 . . . . 1 . Derelict Logs Recovered 11 | . . 1 . 2 . . . 2 . . 2 . . . 2 2 . . . . . . . . . . . Drone Launches . | . . . . . . . . . . . . . . . . . . . . . . . . . . . . Drone Recoveries . | . . . . . . . . . . . . . . . . . . . . . . . . . . . . Exploration | -11 -10 -10 -7 -7 -5 -5 -5 -5 -5 -5 -4 -4 -4 -4 -4 -4 -4 -3 -3 -3 -3 -3 -2 -2 -2 -2 -2 ------------- Run | Yrd Mat Sub Rec Scr Fac Was Fac Upp Upp Zhi Pro Fac Was Fac Upp Upp War Pro Res Gar Res Tes Res Gar Res Qua Frg Turns Passed 15391 | 111 920 1136 675 1347 1268 143 740 439 167 79 44 582 20 618 83 141 304 85 838 112 486 664 415 130 392 623 2829 Spaces Moved 25446 | 49 560 781 625 1329 1412 290 1657 254 380 138 115 1582 69 1426 284 278 757 174 1611 263 1305 1098 1192 197 623 877 6120 Core 671 | 2 . . . 290 13 3 55 252 51 5 . . . . . . . . . . . . . . . . . Treads 9 | . 6 3 . . . . . . . . . . . . . . . . . . . . . . . . . Legs 2 | . . . . . . . . 2 . . . . . . . . . . . . . . . . . . . Wheels 3433 | 47 554 778 625 1039 390 . . . . . . . . . . . . . . . . . . . . . . Hover 313 | . . . . . 313 . . . . . . . . . . . . . . . . . . . . . . Flight 21018 | . . . . . 696 287 1602 . 329 133 115 1582 69 1426 284 278 757 174 1611 263 1305 1098 1192 197 623 877 6120 Fastest Speed 13 | 50 100 115 100 50 34 32 31 50 28 28 27 24 28 22 28 23 20 23 20 20 19 19 13 13 13 13 13 Average Speed 37 | 97 119 128 100 96 65 39 34 158 32 32 27 26 28 27 28 27 24 23 21 20 19 19 18 13 15 13 18 Slowest Speed 500 | 100 240 160 115 500 300 100 50 400 50 150 28 29 28 31 28 28 28 23 23 20 20 93 19 81 16 13 87 Overloaded Moves . | . . . . . . . . . . . . . . . . . . . . . . . . . . . . Propulsion Burnouts . | . . . . . . . . . . . . . . . . . . . . . . . . . . . . Robots Hopped 96 | . . . . . 3 1 15 . 1 . . 7 . 5 . . . . 3 7 4 5 8 . . . 37 Potential Cave-ins 23 | . . . . . 2 . . . . . . . . . . . . . . . . . . 2 . . 19 Cave-ins Triggered 3 | . . . . . . . . . . . . . . . . . . . . . . . . 1 . . 2 Teleports 1 | . . . . . . . . . . . . . . . . . . . . . . . . . . . 1 Exploration Rate (%) 55 | 3 84 49 98 83 31 96 46 52 57 60 27 48 68 32 63 49 90 40 45 44 41 87 36 40 20 87 75 Regions Visited 27 Branch Regions 14 Pre-discovered Areas 27 | . 3 1 6 4 3 . . . . 3 1 1 . 1 1 2 . . . . . . . . . . 1 Known Exits Taken 17 | . 1 1 1 . . . 1 1 . . 1 . . 1 1 1 1 1 1 . 1 1 1 . 1 1 . Unknown Exits Taken 4 | 1 . . . 1 . . . . 1 1 . . . . . . . . . . . . . . . . . Scrap Searched 19 | . . 1 . 7 . . . 2 2 . 2 . . . 1 2 . 2 . . . . . . . . . Spaces Dug 351 | . 4 3 . . 23 . 15 . 6 . 3 19 . 14 . 4 . 1 39 9 24 20 25 2 13 9 118 Terrain Destroyed 625 | . 14 33 . . 65 . 15 3 6 . 3 19 . 14 . 4 . 1 39 9 36 30 28 82 14 9 201 Melee 224 | . . 3 . . 23 . 13 . 6 . 3 19 . 14 . 4 . 1 37 9 24 7 18 . 12 9 22 Projectile 149 | . 6 . . . . . 2 3 . . . . . . . . . . 2 . . 23 10 4 2 . 97 AOE 252 | . 8 30 . . 42 . . . . . . . . . . . . . . . 12 . . 78 . . 82 Terrain Rammed . | . . . . . . . . . . . . . . . . . . . . . . . . . . . . Walls Destroyed . | . . . . . . . . . . . . . . . . . . . . . . . . . . . . Machines Disabled . | . . . . . . . . . . . . . . . . . . . . . . . . . . . . Actions | -11 -10 -10 -7 -7 -5 -5 -5 -5 -5 -5 -4 -4 -4 -4 -4 -4 -4 -3 -3 -3 -3 -3 -2 -2 -2 -2 -2 --------- Run | Yrd Mat Sub Rec Scr Fac Was Fac Upp Upp Zhi Pro Fac Was Fac Upp Upp War Pro Res Gar Res Tes Res Gar Res Qua Frg Total 30247 | 82 696 876 660 1395 1646 316 1769 279 404 160 123 1688 68 1607 286 333 864 215 2048 298 1508 1490 1335 284 904 1356 7557 Wait 3365 | 9 40 40 11 10 110 24 38 12 3 . 1 27 . 123 2 48 74 39 365 25 153 325 93 49 239 439 1066 Move 25246 | 48 559 780 624 1328 1407 287 1627 253 377 137 114 1568 68 1415 283 277 756 173 1605 252 1296 1087 1176 195 622 876 6056 Hop 78 | . . . . . 2 1 14 . 1 . . 7 . 5 . . . . 3 3 4 5 7 . . . 26 Pick Up 144 | 5 9 6 6 23 8 . 6 2 . 1 2 6 . 4 . . 3 . 1 . 6 1 6 . 8 4 37 Fast Attach 151 | 7 2 . . 7 17 2 16 3 8 7 2 12 . 6 . . 8 . 11 . 3 8 2 . 3 5 22 Attach 95 | . 1 4 1 5 12 1 6 1 . 3 . 3 . 4 1 . 1 . 3 . 1 . 2 2 1 5 38 Detach 33 | . . . . 1 1 . 4 . . . . 5 . 2 . . 1 . 2 . . . 1 . 1 1 14 Swap 119 | . 17 13 1 2 3 . 1 . . . . 7 . 7 . 2 2 . 5 4 6 4 6 7 5 4 23 Drop 205 | . 5 5 7 19 16 1 12 . 2 3 1 11 . 7 . . 11 . 10 . 11 7 2 . 9 6 60 Fire 243 | 13 60 12 9 . 4 . 2 8 . . . . . . . 1 . . 4 . 1 26 10 10 2 1 80 Melee 454 | . . 15 1 . 66 . 38 . 13 9 3 39 . 26 . 5 . 3 38 14 27 26 30 2 14 15 70 Ram 5 | . . . . . . . 5 . . . . . . . . . . . . . . . . . . . . Kick . | . . . . . . . . . . . . . . . . . . . . . . . . . . . . Crush 3 | . 3 . . . . . . . . . . . . . . . . . . . . . . . . . . Escape Stasis 9 | . . . . . . . . . . . . . . 7 . . . . . . . . . 1 . . 1 Rewire 18 | . . . . . . . . . . . . . . . . . . . . . . . . 18 . . . Trap 1 | . . 1 . . . . . . . . . . . . . . . . . . . . . . . . . Miscellaneous 78 | . . . . . . . . . . . . 3 . 1 . . 8 . 1 . . 1 . . . . 64 Route ------- -11/Scrapyard -10/Materials (discovered 6 exits: [*Mat x3] / [*Min x2] / *Sub) -10/Subcaves (discovered 2 exits: [*Mat] / *Rec) -7/Recycling (discovered 2 exits: *Fac / *Scr) -7/Scraptown -5/Factory (discovered 5 exits: *Fac x3 / Upp x2) -5/Waste -5/Factory (discovered 2 exits: *Upp x2) -5/Upper Caves (discovered 2 exits: *Upp / *Fac) -5/Upper Caves -5/Zhirov -4/Proximity Caves -4/Factory (discovered 5 exits: Res x3 / *Upp x2) -4/Waste -4/Factory (discovered 4 exits: *Res x3 / *Upp) -4/Upper Caves -4/Upper Caves (discovered 2 exits: Res / *War) -4/Warlord -3/Proximity Caves -3/Research (discovered 7 exits: *Res x3 / Arm / Tes x2 / Gar) -3/Garrison (discovered 4 exits: *Res x4) -3/Research (discovered 6 exits: Res x3 / Arm / *Tes x2) -3/Testing -2/Research (discovered 6 exits: *Acc x3 / Qua x2 / Gar) -2/Garrison (discovered 3 exits: *Res x3) -2/Research (discovered 3 exits: *Acc x2 / *Qua) -2/Quarantine (discovered 3 exits: *Acc / *Sec / *Frg) -2/Protoforge 0bPrime History --------- Turn | Location | Event 7 | -11/Scrapyard | Discovered new exit (range 15) 112 | -11/Scrapyard | Entered Materials 127 | -10/Materials | Discovered new exit (range 14) 304 | -10/Materials | Build established: Mutant 322 | -10/Materials | Discovered new exit (range 4) 492 | -10/Materials | Discovered new exit (range 14) 656 | -10/Materials | Discovered new exit (range 6) 744 | -10/Materials | Discovered new exit (range 12) 806 | -10/Materials | Learned location of 1 exit from Recycling 892 | -10/Materials | Identified exit to Subcaves 912 | -10/Materials | Derelicts attacked the area 913 | -10/Materials | Core integrity fell below 50% 919 | -10/Materials | Learned Storage stockpile data 937 | -10/Materials | Learned location of Mines (-9) 968 | -10/Materials | Learned location of 2 exits from Mines 1032 | -10/Materials | Entered Subcaves 1033 | -10/Subcaves | Approached by a straggling Scientist 1033 | -10/Subcaves | Identified exit to Recycling 1044 | -10/Subcaves | Learned location of Zion (-7) 1066 | -10/Subcaves | Shifting Twisted Machinery released Sub. Shrapnel Launcher 1140 | -10/Subcaves | A swath of the cavern ceiling suddenly collapsed 1568 | -10/Subcaves | Shifting Twisted Machinery released Shrapnel Trap 1569 | -10/Subcaves | Shifting Twisted Machinery released Mak. Light Armor Plating 1759 | -10/Subcaves | A swath of the cavern ceiling suddenly collapsed 1784 | -10/Subcaves | Shifting Twisted Machinery released Sub. Power Source 1787 | -10/Subcaves | Shifting Twisted Machinery released Sub. Optics 1863 | -10/Subcaves | Discovered new exit (range 7) 1889 | -10/Subcaves | Lost 3 parts (1p2w) 2168 | -10/Subcaves | Entered Recycling 2169 | -7/Recycling | Identified exit to Scraptown 2544 | -7/Recycling | Discovered new exit (range 16) 2797 | -7/Recycling | Core integrity fell below 20% 2820 | -7/Recycling | Scanned before Scraplab entrance 2834 | -7/Recycling | Entered Scraplab 2843 | -7/Recycling | Entered Scraptown 3018 | -7/Scraptown | Scanned Subdweller tech in exchange for log data 3023 | -7/Scraptown | Learned Research garrison access intel 3275 | -7/Scraptown | Visited UFD Registry 3275 | -7/Scraptown | Registered with UFD as "Matterparser" 3290 | -7/Scraptown | Visited TADAMA 3313 | -7/Scraptown | Visited Cyclists 3320 | -7/Scraptown | Entered Cyclist Reading Room 3345 | -7/Scraptown | Visited Bundlers 3419 | -7/Scraptown | Visited The Evicted 3433 | -7/Scraptown | Visited Comm Corps 3487 | -7/Scraptown | Visited Shadow of the Wyrm 3522 | -7/Scraptown | Visited Awakened 3625 | -7/Scraptown | Visited Observation Area 3661 | -7/Scraptown | Visited Derelict Rescue Squad 3682 | -7/Scraptown | Visited Modified Component R&D 3750 | -7/Scraptown | Visited Supply Room 3792 | -7/Scraptown | Visited Cartography Club 3845 | -7/Scraptown | Delivered Scrap Shield to a Scientist 3925 | -7/Scraptown | Learned 12 Materials zone layouts 3925 | -7/Scraptown | Learned 20 Factory zone layouts 3925 | -7/Scraptown | Learned 8 Access zone layouts 3925 | -7/Scraptown | Learned 4 Recycling zone layouts 3925 | -7/Scraptown | Learned 8 Lower Caves zone layouts 3925 | -7/Scraptown | Learned 16 Lower Caves zone layouts 3925 | -7/Scraptown | Learned 8 Proximity Caves zone layouts 3925 | -7/Scraptown | Learned 4 Armory zone layouts 3925 | -7/Scraptown | Learned location of 2 exits from Research 3925 | -7/Scraptown | Learned location of 1 exit from Lower Caves 3925 | -7/Scraptown | Learned location of 3 exits from Proximity Caves 3938 | -7/Scraptown | Found Deep Structural Scanner 3998 | -7/Scraptown | Visited Curators Association 4125 | -7/Scraptown | Met Optimus 4125 | -7/Scraptown | Accepted into 0bPrime 4188 | -7/Scraptown | Discovered new exit (range 3) 4190 | -7/Scraptown | Entered Factory 4190 | -5/Factory | Evolved 10 slots: Power x1, Propulsion x5, Utility x4 4191 | -5/Factory | Identified exit to Upper Caves 4191 | -5/Factory | Identified exit to Factory 4687 | -5/Factory | Discovered exit to Factory (range 14) 4746 | -5/Factory | Fabricated Xenon Bombardment Thruster (x2) 4810 | -5/Factory | Loaded intel: 8 recycling unit locations 4915 | -5/Factory | Learned location of Protoforge (-2) 4942 | -5/Factory | Scrapoids reinforcements arrived? 5112 | -5/Factory | Spotted B-75 Beast 5255 | -5/Factory | Build established: Hacker-Mutant 5455 | -5/Factory | Lost 3 parts (1p1u1w) 5458 | -5/Factory | Sucked down chute 5458 | -5/Factory | Entered Waste 5458 | -5/Waste | The area was eerily silent 5542 | -5/Waste | Discovered new exit (range 15) 5601 | -5/Waste | Identified exit to Factory 5601 | -5/Waste | Entered Factory 5630 | -5/Factory | Loaded intel: 8 recycling unit locations 5687 | -5/Factory | Found Prototype Launcher 5687 | -5/Factory | Identified Tesla Bomb Launcher 5949 | -5/Factory | Learned Quarantine terminal intel 5969 | -5/Factory | Lost 3 parts (1n1u1w) 5979 | -5/Factory | Build established: Hacker-Sprinter 6005 | -5/Factory | Loaded intel: 110 trap records 6051 | -5/Factory | Learned Quarantine non-interactive machine intel 6086 | -5/Factory | Learned location of 1 exit from Extension 6110 | -5/Factory | Learned Testing scanalyzer intel 6142 | -5/Factory | Learned location of 1 exit from Extension 6182 | -5/Factory | Learned 8 Research zone layouts 6307 | -5/Factory | Core integrity fell below 50% 6341 | -5/Factory | Entered Upper Caves 6342 | -5/Upper Caves | Encountered a Warlord checkpoint 6343 | -5/Upper Caves | UFD Scientist delivered a prototype 6345 | -5/Upper Caves | Identified exit to Upper Caves 6348 | -5/Upper Caves | Found Prototype Protection 6348 | -5/Upper Caves | Identified Enh. Scrap Shield 6370 | -5/Upper Caves | Lost 7 parts (3n3u1w) 6542 | -5/Upper Caves | Learned location of 1 exit from Factory 6598 | -5/Upper Caves | Build established: Hacker-Mutant 6693 | -5/Upper Caves | Attracted the attention of an 0b10 checkpoint 6716 | -5/Upper Caves | 99-TNT showed up to help 6718 | -5/Upper Caves | 99-TNT revealed a hidden path 6751 | -5/Upper Caves | Lost 3 parts (1n1u1w) 6780 | -5/Upper Caves | Entered another Upper Caves area 6852 | -5/Upper Caves | Core integrity fell below 20% 6876 | -5/Upper Caves | Spotted B-75 Beast 6907 | -5/Upper Caves | Attracted the attention of an 0b10 outpost 6945 | -5/Upper Caves | Discovered new exit (range 6) 6946 | -5/Upper Caves | Attracted the attention of an 0b10 checkpoint 6947 | -5/Upper Caves | Entered Zhirov 6947 | -5/Zhirov | Discovered new exit (range 3) 6953 | -5/Zhirov | Met Zhirov 6959 | -5/Zhirov | Found Alien Artifact 6959 | -5/Zhirov | Identified Integrated Reactor 6959 | -5/Zhirov | Installed Integrated Reactor, increased core energy generation (+10) 7009 | -5/Zhirov | Found Alien Artifact 7018 | -5/Zhirov | Zhirov requested help retrieving the SGEMP Prototype 7026 | -5/Zhirov | Entered Proximity Caves 7043 | -4/Proximity Caves | Learned 4 Research zone layouts 7070 | -4/Proximity Caves | Entered Factory 7070 | -4/Factory | Evolved 2 slots: Propulsion x1, Utility x1 7071 | -4/Factory | Identified exit to Research 7072 | -4/Factory | Identified exit to Upper Caves 7097 | -4/Factory | Loaded intel: 8 recycling unit locations 7246 | -4/Factory | Spotted B-86 Titan 7276 | -4/Factory | Found Prototype Hackware 7276 | -4/Factory | Identified Exp. Hacking Suite 7303 | -4/Factory | Central database locked down 7319 | -4/Factory | Learned 4 Armory zone layouts 7375 | -4/Factory | Learned Armory stockpile data 7386 | -4/Factory | Learned Factory stockpile data 7409 | -4/Factory | Learned 4 Proximity Caves zone layouts 7435 | -4/Factory | Learned Factory stockpile data 7545 | -4/Factory | Build established: Hacker-Scout 7652 | -4/Factory | Sucked down chute 7652 | -4/Factory | Entered Waste 7664 | -4/Waste | Spotted C-40 Crusher 7667 | -4/Waste | EMP discharged 7667 | -4/Waste | Spotted C-40 Crusher 7667 | -4/Waste | Spotted C-40 Crusher 7667 | -4/Waste | Discovered new exit (range 16) 7671 | -4/Waste | Identified exit to Factory 7672 | -4/Waste | Entered Factory 7866 | -4/Factory | Loaded intel: 8 recycling unit locations 7940 | -4/Factory | Discovered exit to Upper Caves (range 15) 8008 | -4/Factory | Discovered exit to Research (range 13) 8140 | -4/Factory | Fabricated Q-thruster? 8178 | -4/Factory | Learned Armory garrison access intel 8228 | -4/Factory | Learned location of 1 exit from Research 8246 | -4/Factory | Spotted B-86 Titan 8263 | -4/Factory | Learned Research emergency access door positions 8290 | -4/Factory | Entered Upper Caves 8331 | -4/Upper Caves | Learned location of 1 exit from Research 8369 | -4/Upper Caves | Discovered new exit (range 14) 8372 | -4/Upper Caves | Identified exit to Upper Caves 8373 | -4/Upper Caves | Entered another Upper Caves area 8425 | -4/Upper Caves | Learned Armory terminal intel 8425 | -4/Upper Caves | Learned location of 1 exit from Proximity Caves 8486 | -4/Upper Caves | Attracted the attention of an 0b10 base 8510 | -4/Upper Caves | Discovered new exit (range 10) 8514 | -4/Upper Caves | Identified exit to Warlord 8514 | -4/Upper Caves | Entered Warlord 8515 | -4/Warlord | Identified exit to Proximity Caves 8530 | -4/Warlord | System corruption cleaned by Quarantine Array 8584 | -4/Warlord | Visited the Vortex Lab 8585 | -4/Warlord | Found Prototype Energy Gun 8585 | -4/Warlord | Identified Vortex Rifle 8588 | -4/Warlord | Found Vortex Rifle 8606 | -4/Warlord | Warlord's base attacked by MAIN.C 8657 | -4/Warlord | Found Prototype Processor 8657 | -4/Warlord | Identified Exp. Armor Integrity Analyzer 8662 | -4/Warlord | Found Prototype Hackware 8665 | -4/Warlord | Found Prototype Reactor 8665 | -4/Warlord | Identified Vortex Chain Reactor 8678 | -4/Warlord | Learned Armory security intel 8678 | -4/Warlord | Learned Factory scanalyzer intel 8678 | -4/Warlord | Learned Armory scanalyzer intel 8679 | -4/Warlord | Learned 4 Testing zone layouts 8679 | -4/Warlord | Learned Testing emergency access door positions 8691 | -4/Warlord | Rebuked by Warlord 8801 | -4/Warlord | Opened side exit 8818 | -4/Warlord | Entered Proximity Caves 8903 | -3/Proximity Caves | Entered Research 8903 | -3/Research | Evolved 2 slots: Utility x2 8904 | -3/Research | Identified exit to Armory 8904 | -3/Research | Identified exit to Testing 8905 | -3/Research | Identified exit to Research 8908 | -3/Research | Loaded intel: 4 garrison access locations 8939 | -3/Research | Identified System Mapper 9040 | -3/Research | Loaded intel: 5 recycling unit locations 9241 | -3/Research | Spotted B-86 Titan 9247 | -3/Research | Build established: Hacker-Ninja 9408 | -3/Research | Learned Quarantine garrison access intel 9428 | -3/Research | Fabricated Exp. Signal Interpreter (x1) 9450 | -3/Research | Learned Testing emergency access door positions 9481 | -3/Research | Learned location of 1 exit from Armory 9503 | -3/Research | Learned Testing terminal intel 9514 | -3/Research | Fabricated Exp. Heat Sink (x1) 9514 | -3/Research | Learned Quarantine trap positions 9515 | -3/Research | Learned 4 Access zone layouts 9525 | -3/Research | Learned 12 Access zone layouts 9546 | -3/Research | Learned Quarantine garrison access intel 9555 | -3/Research | Build established: Wizard-Scout 9575 | -3/Research | Learned Testing garrison access intel 9646 | -3/Research | Central database locked down 9741 | -3/Research | Identified exit to Garrison 9741 | -3/Research | Entered Garrison 9779 | -3/Garrison | Triggered checkpoint 9808 | -3/Garrison | Discovered new exit (range 21) 9808 | -3/Garrison | Discovered new exit (range 53) 9808 | -3/Garrison | Discovered new exit (range 58) 9808 | -3/Garrison | Discovered new exit (range 36) 9808 | -3/Garrison | Identified exit to Research 9812 | -3/Garrison | Installed Relay Interface Framework 9853 | -3/Garrison | Entered Research 9897 | -3/Research | Fabricated Adv. Cloaking Device (x2) 9925 | -3/Research | Fabricated Adv. System Restoration Module (x2) 10004 | -3/Research | Repaired Exp. Propulsion Shielding 10025 | -3/Research | Spotted B-86 Titan 10193 | -3/Research | Discovered exit to Research (range 16) 10202 | -3/Research | Loaded intel: 5 recycling unit locations 10237 | -3/Research | Discovered exit to Research (range 18) 10270 | -3/Research | Learned Access stockpile data 10288 | -3/Research | Learned location of 1 exit from Armory 10289 | -3/Research | Learned 8 Quarantine zone layouts 10294 | -3/Research | Learned Access trap positions 10308 | -3/Research | Learned 12 Access zone layouts 10339 | -3/Research | Entered Testing 10343 | -3/Testing | Loaded intel: 10 terminal locations 10344 | -3/Testing | Loaded intel: 3 scanalyzer locations 10529 | -3/Testing | Found Prototype Processor 10533 | -3/Testing | Identified Spectral Analyzer 10650 | -3/Testing | Found Prototype Ballistic Cannon 10650 | -3/Testing | Identified Perforator 10767 | -3/Testing | Learned 12 Research zone layouts 10830 | -3/Testing | Learned Quarantine non-interactive machine intel 10882 | -3/Testing | Learned Research trap positions 10925 | -3/Testing | Learned 4 Access zone layouts 10979 | -3/Testing | Learned Research stockpile data 10990 | -3/Testing | Learned location of 3 exits from Research 11003 | -3/Testing | Entered Research 11003 | -2/Research | Evolved 2 slots: Propulsion x1, Utility x1 11004 | -2/Research | Identified exit to Access 11004 | -2/Research | Identified exit to Quarantine 11007 | -2/Research | Loaded intel: 106 trap records 11015 | -2/Research | Identified Transdimensional Reconstructor 11324 | -2/Research | Identified exit to Garrison 11357 | -2/Research | Loaded intel: 5 recycling unit locations 11418 | -2/Research | Entered Garrison 11419 | -2/Garrison | Identified exit to Research 11424 | -2/Garrison | Triggered checkpoint 11430 | -2/Garrison | Phase Generator disabled 11436 | -2/Garrison | Discovered exit to Research (range 52) 11436 | -2/Garrison | Discovered exit to Research (range 45) 11436 | -2/Garrison | Discovered exit to Research (range 38) 11448 | -2/Garrison | Lost 4 allies 11469 | -2/Garrison | Crushed by falling debris 11478 | -2/Garrison | Garrison Relay disabled 11483 | -2/Garrison | Expanded RIF knowledge: Threat Obfuscation 11548 | -2/Garrison | Entered Research 11548 | -2/Research | Accompanied by 2 allies 11803 | -2/Research | Build established: Hacker-Ninja 11889 | -2/Research | Discovered exit to Access (range 14) 11932 | -2/Research | Spotted B-90 Cyclops 11940 | -2/Research | Entered Quarantine 11941 | -2/Quarantine | Identified exit to Section 7 11941 | -2/Quarantine | Identified exit to Protoforge 11942 | -2/Quarantine | Loaded intel: 13 trap records 11943 | -2/Quarantine | Loaded intel: 55 non-interactive machine locations 11944 | -2/Quarantine | Loaded intel: 15 terminal locations 11945 | -2/Quarantine | Loaded intel: 1 garrison access location 11964 | -2/Quarantine | Found Alien Energy Cannon 11970 | -2/Quarantine | Found Alien Slashing Weapon 11970 | -2/Quarantine | Identified Sigix Broadsword 12028 | -2/Quarantine | Repaired Exp. Propulsion Shielding 12063 | -2/Quarantine | Repaired Q-thruster 12119 | -2/Quarantine | Identified Core Cannon 12143 | -2/Quarantine | Discovered exit to Access (range 12) 12160 | -2/Quarantine | Found Alien Artifact 12183 | -2/Quarantine | Found Alien Artifact 12183 | -2/Quarantine | Identified Terrabomb 12183 | -2/Quarantine | Used Terrabomb 12187 | -2/Quarantine | Found Terrabomb 12194 | -2/Quarantine | Learned Access repair station intel 12314 | -2/Quarantine | Learned 4 Research zone layouts 12343 | -2/Quarantine | Spotted Fortress 12357 | -2/Quarantine | Learned Access recycling unit intel 12411 | -2/Quarantine | Learned Research trap positions 12538 | -2/Quarantine | Learned 4 Research zone layouts 12563 | -2/Quarantine | Entered Protoforge 12607 | -2/Protoforge | Crushed by falling debris 12617 | -2/Protoforge | Superfortress began startup sequence 12646 | -2/Protoforge | Spotted EXE-6 12646 | -2/Protoforge | Spotted EXE-6 12649 | -2/Protoforge | Spotted Decapitator 12649 | -2/Protoforge | Spotted Decapitator 12666 | -2/Protoforge | UFD initiated attack on Protoforge 12666 | -2/Protoforge | Loaded intel: 3 recycling unit locations 12680 | -2/Protoforge | Scraphulk reinforcements arrived 12695 | -2/Protoforge | Scraphulk reinforcements arrived 12702 | -2/Protoforge | Optimus greeted in Protoforge 12785 | -2/Protoforge | Spotted Overlord 12843 | -2/Protoforge | Spotted AP7-3 12846 | -2/Protoforge | Spotted AP7-3 12851 | -2/Protoforge | Spotted Immortal 12854 | -2/Protoforge | Additional patrols dispatched to research labs 12857 | -2/Protoforge | Spotted Immortal 12860 | -2/Protoforge | Spotted Immortal 12863 | -2/Protoforge | Spotted Striker 12863 | -2/Protoforge | Spotted Striker 12864 | -2/Protoforge | Used Terrabomb 12868 | -2/Protoforge | Met 7R-MNS 12877 | -2/Protoforge | Forge Plexus network access discovered 12913 | -2/Protoforge | Spotted Immortal 12938 | -2/Protoforge | Allies destroyed Immortal 12949 | -2/Protoforge | Allies destroyed Immortal 12950 | -2/Protoforge | Found Exp. Cloaking Device 12953 | -2/Protoforge | Found Cep. Antimissile System 12954 | -2/Protoforge | Found Exp. Melee Analysis Suite 12963 | -2/Protoforge | Spotted Striker 12973 | -2/Protoforge | Spotted Executioner 12988 | -2/Protoforge | Spotted Executioner 13027 | -2/Protoforge | Lost 3 allies 13054 | -2/Protoforge | Spotted Executioner 13058 | -2/Protoforge | Spotted Striker 13059 | -2/Protoforge | Spotted Executioner 13067 | -2/Protoforge | Spotted Executioner 13107 | -2/Protoforge | Spotted Executioner 13161 | -2/Protoforge | Fabricated Adv. Reaction Control System (x2) 13215 | -2/Protoforge | Fabricated Exp. Utility Shielding (x1) 13217 | -2/Protoforge | Spotted Executioner 13217 | -2/Protoforge | Spotted Executioner 13218 | -2/Protoforge | Spotted Executioner 13231 | -2/Protoforge | Spotted Executioner 13256 | -2/Protoforge | Crushed by falling debris 13287 | -2/Protoforge | Lost 3 parts (3n) 13293 | -2/Protoforge | UFD reported confirmed Drillbomb installation 13311 | -2/Protoforge | Spotted Executioner 13311 | -2/Protoforge | Spotted Striker 13311 | -2/Protoforge | Spotted Striker 13313 | -2/Protoforge | Spotted Executioner 13317 | -2/Protoforge | Spotted Executioner 13321 | -2/Protoforge | Spotted Executioner 13339 | -2/Protoforge | Found Exp. Core Analyzer 13354 | -2/Protoforge | Destroyed Striker 13394 | -2/Protoforge | Lost 5 allies 13407 | -2/Protoforge | System corruption reached 10% 13408 | -2/Protoforge | Spotted Decapitator 13408 | -2/Protoforge | Spotted Decapitator 13408 | -2/Protoforge | Spotted Decapitator 13408 | -2/Protoforge | Spotted Decapitator 13461 | -2/Protoforge | Spotted V114-l 13469 | -2/Protoforge | Spotted Immortal 13469 | -2/Protoforge | Spotted Immortal 13470 | -2/Protoforge | Spotted V594-i 13481 | -2/Protoforge | Found Cep. Smart ZDS 13583 | -2/Protoforge | Spotted Immortal 13649 | -2/Protoforge | Found Exp. Jetlance 13695 | -2/Protoforge | Lost 8 allies 13718 | -2/Protoforge | Spotted Hotshot 13718 | -2/Protoforge | Spotted Hotshot 13731 | -2/Protoforge | Destroyed Hotshot 13735 | -2/Protoforge | Destroyed Hotshot 13737 | -2/Protoforge | Spotted Hotshot 13741 | -2/Protoforge | Spotted Hotshot 13899 | -2/Protoforge | Fabricated Adv. System Restoration Module (x2) 13903 | -2/Protoforge | Spotted Striker 13903 | -2/Protoforge | Spotted Executioner 13937 | -2/Protoforge | UFD reported confirmed Drillbomb installation 14145 | -2/Protoforge | Fabricated Adv. Gravity Neutralizer (x1) 14162 | -2/Protoforge | Identified Subatomic Replicator 14162 | -2/Protoforge | Used Subatomic Replicator to create Alien Artifact 14167 | -2/Protoforge | Found UFD Drillbomb 14233 | -2/Protoforge | Lost 4 allies 14239 | -2/Protoforge | Spotted Striker 14239 | -2/Protoforge | Spotted Striker 14260 | -2/Protoforge | Installed UFD Drillbomb at designated target 14260 | -2/Protoforge | UFD reported confirmed Drillbomb installation 14272 | -2/Protoforge | Repaired Exp. Propulsion Shielding 14307 | -2/Protoforge | Spotted Executioner 14307 | -2/Protoforge | Spotted Executioner 14310 | -2/Protoforge | Found UFD Drillbomb 14322 | -2/Protoforge | Spotted Executioner 14322 | -2/Protoforge | Spotted Striker 14403 | -2/Protoforge | Spotted Executioner 14433 | -2/Protoforge | Destroyed Executioner 14435 | -2/Protoforge | Spotted Executioner 14518 | -2/Protoforge | Destroyed Executioner 14525 | -2/Protoforge | Found UFD Drillbomb 14552 | -2/Protoforge | Installed UFD Drillbomb at designated target 14552 | -2/Protoforge | UFD reported confirmed Drillbomb installation 14561 | -2/Protoforge | UFD reported confirmed Drillbomb installation 14609 | -2/Protoforge | Installed UFD Drillbomb at designated target 14609 | -2/Protoforge | UFD reported confirmed Drillbomb installation 14693 | -2/Protoforge | Spotted Hotshot 14695 | -2/Protoforge | Spotted Hotshot 14709 | -2/Protoforge | Spotted Executioner 14710 | -2/Protoforge | Spotted Striker 14718 | -2/Protoforge | Found UFD Drillbomb 14734 | -2/Protoforge | Installed UFD Drillbomb at designated target 14734 | -2/Protoforge | UFD reported confirmed Drillbomb installation 14749 | -2/Protoforge | Found UFD Drillbomb 14752 | -2/Protoforge | Found Exp. Targeting Computer 14761 | -2/Protoforge | UFD reported confirmed Drillbomb installation 14764 | -2/Protoforge | Spotted Executioner 14769 | -2/Protoforge | Spotted Executioner 14852 | -2/Protoforge | Build established: Scavenger-Ninja 14899 | -2/Protoforge | Spotted Hotshot 14923 | -2/Protoforge | Installed UFD Drillbomb at designated target 14923 | -2/Protoforge | UFD reported confirmed Drillbomb installation 14942 | -2/Protoforge | Spotted Hotshot 14943 | -2/Protoforge | Spotted B-90 Cyclops 14943 | -2/Protoforge | Spotted Hotshot 14971 | -2/Protoforge | Spotted Executioner 14976 | -2/Protoforge | Spotted Executioner 14983 | -2/Protoforge | Found UFD Drillbomb 15156 | -2/Protoforge | Learned 4 Access zone layouts 15241 | -2/Protoforge | Spotted Executioner 15241 | -2/Protoforge | Spotted Executioner 15241 | -2/Protoforge | Identified Supercharged TR 15241 | -2/Protoforge | Warped through subspace 15242 | -2/Protoforge | Core integrity fell below 50% 15249 | -2/Protoforge | Spotted Striker 15252 | -2/Protoforge | Spotted Executioner 15255 | -2/Protoforge | Learned Access repair station intel 15268 | -2/Protoforge | Spotted Executioner 15275 | -2/Protoforge | Found UFD Drillbomb 15290 | -2/Protoforge | Learned location of 1 exit from Research 15292 | -2/Protoforge | Installed UFD Drillbomb at designated target 15292 | -2/Protoforge | UFD reported confirmed Drillbomb installation 15293 | -2/Protoforge | UFD began Drillbomb countdown 15315 | -2/Protoforge | Learned Access recycling unit intel 15393 | *** | Defending 0bPrime! Last Messages --------------- 15384_ 0bP_NET: In T-9 this fine piece of machinery is all ours for the steep price of... many UFD lives. 15384_ N-04 Retriever collects Plexus Tether. 15385_ 0bP_NET: But with it we will not only rebuild, we will wrest full control over 0b1 for ourselves! 15386_ 0bP_NET: What better way to punctuate our success than a blaze of glory, directed away from ourselves, of course. 15387_ 0bP_NET: Time for our final countdown to an explosive victory... 15388_ 0bP_NET: 5! 15389_ 0bP_NET: 4! 15390_ 0bP_NET: 3! 15391_ 0bP_NET: If you're in the wrong place at the wrong time, the wrong time being in just a moment, I'm sorry but prepare to die. 15392_ 0bP_NET: Otherwise, enjoy the show! 15393_ >> SKIM: Exit location confirmed. Map ----- +----------------------------------------------------+ | ??# #?????##"""""""" """"""""#????????????? | | #?# #####?## """" """" #????????????? | | #?#""#######" "" "" ##??######???# | | ###" """## " T" " "#??#""""#???# | | ###" ==""""" ##### !!##### | | | | FFF | | FFF | | FFF | | | | % | | ###" ;;;;; ";### [[[##### | | ## """""; ;"""""""" """""""; ##""""#???# | | ## """;;" ; " """" " """""""; #######???# | | # ;" """ """""""" #????????? | | # ;;;;;;;;#;;;;;;;;;";;;;"; #????????? | | # # #????????? | | # # #????????? | | # # #????????? | | # ! # ;;; ;; ;;#;;#;;;;;;;########### | | *#% ; % | | # ## ; " " " % | | # ## ; ""% % % "" "" | | # # ; " %% "% """ "" " % "" | | # #! # ; """% "" " """ "% | | # # ; @% ""% % % | | # # ; % ! % %"" " | | ## # ; "" """" " % | | ?# # % " "" | | ?##" ;;m;; ;; % " """ % | | ?## ; " % "" "" | | ?## ; "" " | | ### ; % % "" """ "% | | # ; % """ " % % " " "" | | "! ; ; %% % % " " | | !!! ; ;% " " " " " | | =!=! ; / ; %% """"" " | | !*%%= ! !! ; % " " " """" | | =%=%"%%;;%; ;; % %%;%% "%"" % % """"""" | | %*% % %m %%%%%%%%%% n% %"""""""" | | %%% %%% %%E% %%%%%%% % """"""""" | | %%% %% %%& %% %% %%% "" = % """""""""" | | "%"%%%"%" ;%;;%; ;%#%& % % """"""""""" | | =%!=![![! ! ;;;%#%% %% % " %%% """""""""""" | | ![/=**= == # # %%% % " """"""""""""" | | !!!=! # *##=# %% % % % """"""""""""" | | " ####? # # #?### % % "% """"""""""""" | | *"##???????? ????# %%% " """""""""""""" | | [##????????????????# % %%%% " """""""""""""" | | ###????????????????# %% %% """""""""""""" | +----------------------------------------------------+ Best States ------------- Heat Dissipation 85 Coolant Potential 120 Energy Generation 65 Energy Capacity 710 Matter Stores 300 Matter Capacity 300 Sight Range 24 Robot Scan Range 18 Terrain Scan Density 10 ECM Strength 2 Jamming Range 16 Cloak Strength 4 Additional Mass Support 16 Corruption Block 20 Armor Coverage 800 Power Shielding 15 Propulsion Shielding 90 Utility Shielding 90 Evasion (%) 78 Core Analysis 8 Recoil Reduction 1 Offensive Hacking 50 Defensive Hacking 14 Authchip Count 3 Item Schematics ----------------- Great Maul | -5/Factory | Extracted Com. Wheel | -5/Factory | Extracted Thermic Laser | -5/Factory | Extracted Remote Shield | -5/Factory | Extracted Imp. Hacking Suite | -5/Factory | Extracted Adv. Sensor Array | -5/Factory | Extracted Adv. Melee Analysis Suite | -5/Factory | Extracted Med. Matter Pod | -5/Factory | Extracted Xenon Bombardment Thruster | -5/Factory | Scanalyzed Multitool | -5/Factory | Scanalyzed CPS Tube | -5/Factory | Scanalyzed Mapping Drone Bay | -5/Factory | Scanalyzed Adv. System Restoration Module | -5/Factory | Downloaded Q-thruster | -5/Factory | Scanalyzed Assault Drone Bay | -5/Zhirov | Free Exp. Heat Sink | -5/Zhirov | Free Exp. Optical Array | -5/Zhirov | Free Imp. Arc Thrower | -5/Zhirov | Free Quantum Capacitor | -4/Factory | Hacked Exp. Signal Interpreter | -4/Factory | Hacked Adv. Surge Thruster | -4/Factory | Hacked Exp. Propulsion Shielding | -4/Factory | Scanalyzed Lrn. Sensor Array | -4/Factory | Scanalyzed Mni. Fusion Reactor | -4/Factory | Hacked Adv. Gravity Neutralizer | -3/Research | Hacked Spectral Analyzer | -3/Testing | Scanalyzed Adv. Reaction Control System | -3/Testing | Hacked Femtoactuators | -3/Testing | Hacked Exp. Utility Shielding | -2/Protoforge | Hacked Cld. Linear Gravjet | -2/Protoforge | Archive Centrium Heavy Armor Plating | -2/Protoforge | Archive Robot Schematics ------------------ Y-64 Sentinel | -4/Factory | Hacked P-70 Sage | -4/Factory | Hacked O-32 Director | -2/Protoforge | Archive Fabricated ------------ Xenon Bombardment Thruster | x2 | -5/Factory | Authchip Q-thruster | x2 | -4/Factory | Authchip Exp. Signal Interpreter | x1 | -3/Research | Authchip Exp. Heat Sink | x1 | -3/Research Adv. Cloaking Device | x2 | -3/Research | Preloaded Adv. System Restoration Module | x2 | -3/Research Adv. Reaction Control System | x2 | -2/Protoforge | Authchip Exp. Utility Shielding | x1 | -2/Protoforge Adv. System Restoration Module | x2 | -2/Protoforge | Authchip Adv. Gravity Neutralizer | x1 | -2/Protoforge | Authchip Repaired ---------- Exp. Propulsion Shielding | 27% | -3/Research Exp. Propulsion Shielding | 10% | -2/Quarantine Q-thruster | 45% | -2/Quarantine Exp. Propulsion Shielding | 9% | -2/Protoforge Alien Tech Used ----------------- Integrated Reactor Sigix Broadsword Core Cannon Terrabomb Subatomic Replicator Supercharged TR Achievements -------------- None Challenges ------------ None Game ------ Seed TripodDimensionalStick Manual? 0 Play Time 05:59:47 Cumulative 490.6 hours Start 2025.08.24 @ 19:12:03 End 2025.08.25 @ 17:42:17 Sessions 7 Manual Loads 0 Difficulty Rogue Special Mode None Game No. 211 Rogue 211 Adventurer 0 Explorer 0 Win Type 9 Total 34 Types 14/2/6/2/5/1/0/2/0/2 Lore% 95 Gallery% 86 Achievement% 80 Wizard Run 0 Options --------- Layout 1 ASCII 0 Keyboard 0 Movement Numpad Keybinds 0 Fullscreen 1 Font 24/Smallcaps Map View 50x35 Zoom Use 0% Tactical HUD 1 Map Filters NONE Filters NONE Steam 1 RUN: 1525abc4-0440-4737-b6b7-9b3bded5c7bc